Workbook

Sheet Cover Page
N2: Version 22.3 30/11/22
B8: Add photo
N13: Notes:
N14: This template may require adjustments by individual operators to meet specific reporting requirements as defined in the site Permit(s)
B29: Annual Performance Report 2022
B31: Permit EPR/YP3033BE
B33: LondonEnergy Ltd
B35: EcoPark
B37: LondonEnergy Ltd
B39: Year: | C39: 2022
B41: Address: | C41: Advent way
B43: Tel: | C43: 020 7000 9595
B45: Email: | C45: HSQE@londonenergyltd.com
B47: Prepared by: | C47: Amani Jemal | F47: Position: | G47: Environemtal advisor
C48: Uzonna Ibe
B50: Approved by: | C50: Elis Jenkins | F50: Position: | G50: Senior Environment Leader
B52: Version: | C52: 1
B54: Issue Date: | C54: 2023-01-27

Sheet Contents
A1: Annual Performance Report 2022 | E1: Name of Facility as per Permit | I1: LondonEnergy Ltd
A3: Contents | K3: Notes:
A4: Section | B4: Subject | H4: Page | K4: Section references and Page nos. to be inserted
B5: Facility Information | K5: Sections and Subjects may require adjustment by individual operators to meet specific reporting requirements as defined in the sites Permit(s)
B6: Operational Data
B7: Operational Summary
B8: Performance Form 1
B9: Energy Form 1
B10: Permit Compliance
B11: Improvements
B12: Public Liasion
B13: Carbon dioxide and nitrous oxide emissions
B14: Residue Quality
B15: Emissions to Water
B16: Emissions to Air (periodically monitored)
B17: Emissions to Air (continuously monitored)
B18: Hydrogen Chloride emissions
B19: Sulphur Dioxdie emsissions
B20: Oxides of Notrigen emissions
B21: Total Organic Carbon emissions
B22: Particulate Matter emissions
B23: Carbon Monoxide emissions
B24: Ammonia emissions
A27: Version Control
A28: Section | B28: Information | H28: Date
A35: Distribution
A36: Copy | B36: Name, Role | H36: No.
A45: This report is required under the Industrial Emissions Directive’s Article 55(2) requirements on reporting and public information on waste incineration plants and co-incineration plants, which require the operator to produce an annual report on the functioning and monitoring of the plant and make it available to the public.

Sheet Facility Info
A1: Annual Performance Report 2022 | E1: LondonEnergy Ltd
A3: Plant Description and Design | K3: Notes:
A5: The EcoPark Energy Centre consists of 5 boilers, 5 turbines and 4 flue gas treatment streams. The boilers are a rolling grate technology and the plant is equipped with Atmospheric Pollution Control (APC) measures that ensure that the plant conforms to the requirements set out in the Waste Incineration Directive 2000/76/EC (WID) in all respects. In practice, the pollutant abatement technologies applied will limit the emission concentrations to levels below the limit values. The heat from the process is utilised to generate potentially 40 MW of electricity, of which in excess of up to 80% is exported to the local electricity distribution network, thus saving valuable fossil fuel resources. | K5: Include summary of plant design, design capacity, no. of combustion lines, electrical and heat capacity and any other general information that descibes the facility, its location and purpose
A20: Summary of Operational Processes and Procedures
A22: The burning process significantly reduces the volume of waste. Ferrous and non-ferrous metals are recycled as is Incinerator Bottom Ash (IBA). The IBA is recycled utilising established methodology for use as a secondary aggregate e.g. for asphalt. The effect of reducing the volume by recovery of this material means that landfill void space is conserved. Equally as important, the use of secondary aggregates reduces the demand upon the quarrying of primary aggregates. The EcoPark Energy Centre plant operates on a continuous 24-hour basis throughout the year, apart from partial planned and unplanned shutdowns. Incidents that cause unplanned shutdowns are dealt with in accordance with the appropriate planned actions. To offer maximum flexibility to the Local Authorities waste collection services, and to minimise local impact, particularly during peak traffic times, the facility is permitted to accept waste on a 24-hour basis. | K22: Include summary of key processes and procedures such as (but not limited to); waste reception, control rooms, grate, bed and bolier, energy & heat generation, cooling systems, residue management, emission controls, health and safety systems, maintenance

Sheet Operational Data
A1: Annual Performance Report 2022 | E1: LondonEnergy Ltd
A3: Operational Data | I3: =40*8760 -> 350400 | K3: Notes:
A4: Plant Size | B4: Max 750000 | D4: tonnes pa | F4: MWth | G4: 5400000 | H4: MWe | K4: * - RDF to include SRF
A5: No. of combustion lines | B5: 5 | D5: No. of Turbines: | F5: 5 | K5: ** - CHP plants only
K6: 2020 updates include; heat in MWh, water in Litres, NCV in MJ/kg
A7: Waste types received | B7: Unit | C7: Q1 | D7: Q2 | E7: Q3 | F7: Q4 | G7: Year Total | H7: %
A8: Household / Local Authority | B8: tonnes | C8: 116662 | D8: 103916 | E8: 122671 | F8: 132176 | G8: 475425 | H8: 0.973 | K8: Availabiity Definition: 'the availability of a line is to be calculated by the number of hours the line reported Continuously Monitored emission levels to the Regulator through the calendar year divided by the total number of hours in that year. The overall plant availability is calculated as the Mean of all lines in the plant. For clarity this includes periods of Other Than Normal Operating Conditions (OTNOC) and abnormal operation.' Rationale: The primary function of an Energy from Waste facility is the disposal of waste. It follows therefore that the availability of a plant is determined by the period of time a facility spends undertaking this activity.
A9: Commercial & Industrial | G9: - | H9: -
A10: Hazardous | G10: - | H10: -
A11: Clinical | C11: 133 | D11: 131 | E11: 132 | F11: 126 | G11: 521 | H11: 0.001
A12: Waste wood (biomass) | G12: - | H12: -
A13: Refuse Derived Fuel * - H'hold/LA | C13: 4480 | D13: 553 | E13: 2661 | F13: 5053 | G13: 12746 | H13: 0.026
A14: Refuse Derived Fuel * - C&I | G14: - | H14: -
A15: Other [Please specify] | C15: 9 | D15: 10 | E15: 10 | F15: 9 | G15: 38 | H15: 0
A16: Other [Please specify] | C16: 0 | D16: 0 | E16: - | F16: - | G16: 1 | H16: 0
A17: Other [Please specify] | G17: - | H17: -
A18: Total waste received | C18: 121283 | D18: 104609 | E18: 125474 | F18: 137364 | G18: 488730 | H18: 1
A19: Rejected Waste | G19: - | H19: -
A20: Unprocessed waste transferred out | G20: - | H20: -
A21: Total waste combusted | C21: 121283 | D21: 104609 | E21: 125474 | F21: 137364 | G21: 488730 | H21: -
A23: Energy Useage / Export | B23: Unit | C23: Q1 | D23: Q2 | E23: Q3 | F23: Q4 | G23: Year Total | H23: KWh/te
A24: Power Generated | B24: MWh | C24: 63827 | D24: 55189 | E24: 60534 | F24: 67931 | G24: =SUM(C24:F24) -> 247481 | H24: =IF(G24>0,G24*1000/$G$21,"-") -> 506.3757085
A25: Power Exported | C25: 53657 | D25: 46253 | E25: 53426 | F25: 57052 | G25: =SUM(C25:F25) -> 210388 | H25: =IF(G25>0,G25*1000/$G$21,"-") -> 430.4789966
A26: Power Used on site | C26: 10170 | D26: 8936 | E26: 10579 | F26: 10879 | G26: 40564 | H26: 82.99879279
A27: Power Imported | C27: 240 | D27: 186 | E27: 8 | F27: - | G27: 434 | H27: 0.8880158779
A28: Parasitic Load | B28: % | C28: =C26/C24 -> 0.1593369577 | D28: =D26/D24 -> 0.1619163239 | E28: 0.1747612912 | F28: 0.160147797
A29: Thermal Energy Produced ** | B29: MWh | G29: 0 | H29: =IF(G29>0,G29*1000/$G$21,"-") -> -
A30: Thermal Energy Exported ** | G30: 0 | H30: =IF(G30>0,G30*1000/$G$21,"-") -> -
A31: R1 value (if applicable)
A33: Waste Disposal & Recovery | B33: Unit | C33: Q1 | D33: Q2 | E33: Q3 | F33: Q4 | G33: Year Total | H33: % inputs
A34: APC Residues - produced | B34: tonnes | C34: 3552 | D34: 2942 | E34: 3542 | F34: 3727 | G34: 13763 | H34: =IF(G34>0,G34/$G$21,"-") -> 0.02816074315
A35: IBA - produced | C35: 18536 | D35: 16634 | E35: 22626 | F35: 22816 | G35: 80612 | H35: =IF(G35>0,G35/$G$21,"-") -> 0.1649417879
A36: Metals recycling | C36: 2338 | D36: 1893 | E36: 2398 | F36: 2552 | G36: 9182 | H36: 0.01878746956
A37: Other | C37: 0 | D37: 0 | E37: 0 | F37: 0 | G37: 0 | H37: -
A38: Other | C38: 0 | D38: 0 | E38: 0 | F38: 0 | G38: 0 | H38: -
A39: Other | C39: 0 | D39: 0 | E39: 0 | F39: 0 | G39: 0 | H39: -
A41: Raw Material Usage | B41: Unit | C41: Q1 | D41: Q2 | E41: Q3 | F41: Q4 | G41: Year Total | H41: kg or Ltr /te
A42: Mains Water | B42: ltrs | C42: 37013000 | D42: 39619000 | E42: 42612000 | F42: 38364000 | G42: 157608000 | H42: 322.48
A43: Other Water | B43: ltrs | C43: 207661000 | D43: 203914000 | E43: 258861000 | F43: 119567000 | G43: 790003000 | H43: 1616.44
A44: Ammonia | B44: kgs | G44: - | H44: -
A45: Urea | B45: kgs | C45: 141080 | D45: 96560 | E45: 94880 | F45: 156930 | G45: 489450 | H45: 1
A46: Activated Carbon | B46: kgs | C46: 73640 | D46: 67040 | E46: 47540 | F46: 99700 | G46: 287920 | H46: 0.59
A47: Lime / hydrated lime | B47: kgs | C47: 919840 | D47: 1077440 | E47: 1187820 | F47: 1074460 | G47: 4259560 | H47: 8.72
A48: Fuel oil | B48: ltrs | C48: 4800 | D48: 2300 | F48: 3800 | G48: 10900 | H48: 0.02
A49: Gas | B49: cf | C49: 4522396 | D49: 13537524 | E49: 7579940 | F49: 28052206 | G49: =SUM(C49:F49) -> 53692066
A50: Other | C50: 0 | D50: 0 | E50: 0 | F50: 0 | G50: 0
A52: Summary | B52: Line/Unit | C52: Q1 | D52: Q2 | E52: Q3 | F52: Q4 | G52: Year Total | J52: Hrs in year
A53: Availability of waste combustion by line, hrs | B53: 1 | C53: 1731 | D53: 1557 | E53: 2168 | F53: 2044 | G53: =SUM(C53:F53) -> 7500 | H53: =G53/$J$53 -> 0.8561643836 | J53: 8760
B54: 2 | C54: 2094 | D54: 1637 | E54: 1762 | F54: 2172 | G54: =SUM(C54:F54) -> 7665 | H54: =G54/$J$53 -> 0.875
B55: 3 | C55: 2160 | D55: 1982 | E55: 1750 | F55: 2181 | G55: 8073 | H55: 0.9215753425
B56: 4 | C56: 1559 | D56: 1694 | E56: 2202 | F56: 2029 | G56: 7484 | H56: 0.8543378995
B57: 5 | C57: 1674 | D57: 1555 | E57: 1954 | F57: 2187 | G57: 7370 | H57: 0.8413242009
A58: Overall Availability, mean avg. of all lines, hrs | C58: 1844 | D58: 1685 | E58: 1967 | F58: 2123 | G58: 7619 | H58: 0.8697488584
A59: Hours of turbine operations, hrs | B59: 1 | C59: 2172 | D59: 1528 | E59: 1486 | F59: 1867 | G59: 7053 | H59: 0.8051369863
A60: Hours of turbine operations, hrs | B60: 2 | C60: 2172 | D60: 1774 | E60: 1988 | F60: 2126 | G60: 8060 | H60: 0.9200913242
A61: Hours of turbine operations, hrs | B61: 3 | C61: 2172 | D61: 1860 | E61: 2012 | F61: 2009 | G61: 8053 | H61: 0.9192922374
A62: Hours of turbine operations, hrs | B62: 4 | C62: 727 | D62: 1393 | E62: 2154 | F62: 2065 | G62: 6339 | H62: =G62/$J$53 -> 0.723630137
A63: Hours of turbine operations, hrs | B63: 5 | C63: 0 | D63: 0 | E63: 0 | F63: 200 | G63: =SUM(C63:F63) -> 200
A64: Hours of heat / steam export | C64: 9234 | D64: 8558 | E64: 9842 | F64: 10638 | G64: =SUM(C64:F64) -> 38272 | H64: n/a
A65: Net Calorific Value of waste | B65: MJ/kg | C65: =[1]Sheet1!$G$7/1000 -> 11.783 | D65: =C65 -> 11.783 | E65: =D65 -> 11.783 | F65: =E65 -> 11.783 | G65: =AVERAGE(C65:F65) -> 11.783 | H65: -
A66: Abnormal Events | B66: qty. | D66: 2 | G66: =SUM(C66:F66) -> 2
A67: Abnormal operation | B67: hours | C67: 1 | G67: 1 | H67: =C67/J53 -> 0.0001141552511
A68: Permit Breaches | B68: qty. | C68: 5 | D68: 12 | E68: 10 | F68: 4 | G68: 31

Sheet Operational Summary
A1: Annual Performance Report 2022 | E1: LondonEnergy Ltd
A3: Summary of Plant Operations and Maintenance during the reporting year | K3: Notes:
A5: LEL carry out annual Boiler, Turbine and Flue Gas Treatment (FGT) outages to comply with Statutory inspections and testing. Each Boiler and FGT's are taken off line, cleaned, inspected visually and by means of Non-Destructive Testing (NDT). Boiler tubes are replaced with new where identified to be below standards and all wear parts replaced where required to ensure reliability and reduce downtime. Turbines are taken off for survey every four years (one each year) to replace and repair the Turbine blades and bearings to achieve the best efficiency possible. During the Turbine surveys all mechanical and electrical components i.e. pumps, motors, valves etc are inspected, tested and repaired/replaced as required. New 11kV switchgear was installed, commissioned and handed over to Operations Team. Installation and comissioning of new turbine due for full handover by end of Q2 2023. TA4 run hours low due to ongoing outage works. | K5: Include summary of key operational and/or mainteanance activity undertaken in the year, such as any major component upgrades and/or replacements
A29: Summary of Residue Handling for the reporting year
A31: All IBA stored on site for the 48 hour cooling period and then sent to Fortis for processing. | K31: Include in here a summary of residue handling regimes and destinations

Sheet Perf. Form 1
A1: 2022 | B1: Annual Reporting Performance Form 1
A3: Permit EPR/YP3033BE | F3: Operator: | G3: LEL
F4: Form: | G4: Performance 1
A5: Facility: | B5: LondonEnergy Ltd
A6: Reporting Period from: | D6: 2022-01-01 | F6: to: | G6: 2022-12-31
A8: 20xx | B8: Annual Reporting of Waste Disposal and Recovery
A9: Waste Description | C9: Disposal Route(s) | E9: Disposal Tonnes | G9: Recovery Tonnes | I9: % / tonne of waste incinerated
A10: 1) Hazardous Wastes
A11: APC Residues | C11: Castle Environmental | E11: 13763 | I11: =E11/'Operational Data'!G21 -> 0.02816074315
A12: IBA | I12: -
I13: -
I14: -
A15: Total Hazardous Waste | E15: =E11 -> 13763 | G15: 0 | I15: =E15/'Operational Data'!G21 -> 0.02816074315
A17: 2) Non-Hazardous Wastes
A18: IBA | C18: Fortis IBA Ltd | G18: =[2]WR1!$D$15 -> 84046 | I18: =G18/'Operational Data'!G21 -> 0.1719681624
A19: Ferrous Metal | C19: Metal Recycler | G19: =[2]WR1!$D$16 -> 9091 | I19: =G19/'Operational Data'!G21 -> 0.01860127269
A20: Process Water | C20: - | E20: - | G20: - | I20: -
I21: -
I22: -
A23: Total Non-Hazardous Waste | E23: 0 | G23: =G18+G19 -> 93137 | I23: =G23/'Operational Data'!G21 -> 0.1905694351
A24: TOTAL WASTE | E24: =E15 -> 13763 | G24: =G23 -> 93137 | I24: =(E24+G24)/'Operational Data'!G21 -> 0.2187301782
A26: Operator’s comments :
A27: Waste disposal and recovery data taken from our quarterly waste return (weighbridge) and might not correlate with operational data due to storage time before disposal or transfer
A31: 20xx | B31: Annual Reporting of Water and Other Raw Material Usage
A32: Raw Material | E32: Usage | G32: Unit | H32: Specific Useage | J32: Unit
A33: Mains Water | E33: ='Operational Data'!G42 -> 157608000 | G33: m3 | H33: =IF(E33>0,E33/'Operational Data'!$G$21,"-") -> 322.4848076 | J33: m3/te
A34: Total Water | E34: ='Operational Data'!G43 -> 790003000 | G34: m3 | H34: =IF(E34>0,E34/'Operational Data'!$G$21,"-") -> 1616.44057 | J34: m3/te
A35: Urea / Ammonia | E35: ='Operational Data'!G45 -> 489450 | G35: kg | H35: =IF(E35>0,E35/'Operational Data'!$G$21,"-") -> 1.001473206 | J35: kg/te
A36: Activated Carbon | E36: ='Operational Data'!G46 -> 287920 | G36: kg | H36: =IF(E36>0,E36/'Operational Data'!$G$21,"-") -> 0.5891187363 | J36: kg/te
A37: Lime / hydrated lime / Sodium Bicarb. | E37: ='Operational Data'!G47 -> 4259560 | G37: kg | H37: =IF(E37>0,E37/'Operational Data'!$G$21,"-") -> 8.715568924 | J37: kg/te
A39: Operator’s comments :
A43: 20xx | B43: Annual Reporting of other performance indicators
A44: Parameter | C44: Results by Line
C45: A1 | D45: A2 | E45: A3 | F45: A4 | G45: A5 | I45: Turbine 1 | J45: Turbine 2
A46: Operating hours for the year, hours | C46: 8760 | D46: 8760
A47: Number of periods of abnormal operation, qty.
A48: Cumulative hours of abnormal operation for this year, hours
A50: Operator’s comments :
A54: Signed: | B54: A. Jemal | G54: Date: | H54: 2023-01-27

Sheet Energy Form 1
A1: 2022 | B1: Annual Reporting of Energy Usage/Export
A3: Permit EPR/YP3033BE | F3: Operator: | G3: LEL
A5: Facility: | B5: LondonEnergy Ltd | F5: Form: | G5: Energy 1
A7: Reporting Period from: | D7: 2022-01-01 | F7: to: | G7: 2022-12-31
A9: Energy Source | D9: Energy Usage | F9: Unit | G9: Specific Useage (KWh/tonne incinerated
A10: Electricity Produced | D10: ='Operational Data'!G24 -> 247481 | F10: MWh | G10: ='Operational Data'!H24 -> 506.3757085
A11: Electricity Imported | D11: ='Operational Data'!G27 -> 434 | F11: MWh | G11: ='Operational Data'!H27 -> 0.8880158779
A12: Electricity Exported | D12: ='Operational Data'!G25 -> 210388 | F12: MWh | G12: ='Operational Data'!H25 -> 430.4789966
A13: Gas Oil | F13: tonnes
A14: Steam/hot water exported | D14: ='Operational Data'!G30 -> 0 | F14: GWh | G14: ='Operational Data'!H30 -> -
A18: Operator’s comments :
A29: Signed: | B29: A. Jemal | G29: Date: | H29: 2023-01-27

Sheet Permit Compliance
A1: Annual Performance Report 2022 | E1: LondonEnergy Ltd
A3: Summary of Permit Compliance
A5: Compliance with permit limits for continuously monitored pollutants
A7: The plant met its emission limits as shown in the table below:
A8: Substance | C8: Percentage time compliant during operation | L8: Notes:
C9: Half-hourly limit | F9: Daily limit | L9: Report to 2 decimal places, i.e. xx.xx% Please provide a brief summary of each notification or non-compliance in the table (rather than just referring to notifications that were sent to the Regulator).
A10: Particulates | C10: 0.9997 | F10: 1
A11: Oxides of nitrogen | C11: 1 | F11: 1
A12: Sulphur dioxide | C12: 1 | F12: 1
A13: Carbon monoxide | C13: 99.83 % or 99.92% 95% of 10-min averages | F13: 0.989
A14: Total organic carbon | C14: 0.9979 | F14: 0.9972
A15: Hydrogen chloride | C15: 1 | F15: 1
A16: Hydrogen fluoride | C16: NA | F16: NA
C17: =AVERAGE(C10:E16) -> 0.99952 | F17: =AVERAGE(F10:I16) -> 0.9977
A19: Summary of any notifications or non-compliances under the permit
A20: Date | B20: Summary of notification or non-compliance [including Line/Reference] | E20: Reason | H20: Measures taken to prevent reoccurrence
A21: 2022-02-09 | B21: A1 South Particulate matter ELV Exceedence 2 X 1/2 hourly | E21: Cause - Preheat dampers remaining open with the main stream in operation following a period of preheating before start up. Action - PLC Logic to be investigated and/or modified to prevent this condition from re-occurring. | H21: A review of the dampener logic control was carried out by operations in conjunction with the relevant contractor to ensure the control was suitable for the operation. Following review, the logic was deemed suitable for the abatement system. Modifications will be made to the startup procedure to specifically highlight the required state of the dampener position during this specific task.
A22: 2022-02-10 | B22: A2 North TOC ELV Exceedence 1 x 1/2 hourly | E22: due to large explosion in Boiler 4 from a gas cylinder causing a spike in the reading which was unrecoverable. | H22: Improved management of waste inspections to reduce the risk of pressurised gas bottles and other non-conforming waste being unloaded into the bunkers and fed into the boiler feed hoppers. Bunker management system in place to allow mixing of waste.
A23: 2022-02-28 | B23: A1 South Particulate matter ELV Exceedence 1 x 1/2 hourly | E23: Ruptured filter bags were the cause of this exceedance. | H23: Damaged filters were replaced before being returned to service. The condition of filter bags for all lines will be assessed during Bag Filters outages
A24: 2022-03-29 | B24: A1 South TOC ELV Exceedence 1 x 1/2 hourly | E24: A sudden over pressurisation event occurred on Boiler 2 at 18:09hrs this was due to a suspected Gas Bottle explosion. Adjustments made to try and control emissions and to stabilise boiler from increase steam flow and over pressurisation. | H24: The investigation has confirmed by comparing the data on the duty and standby analysers that the elevated readings were due to a linearity test being carried out where the control had not switched analysers at the time of the testing so these readings are no longer considered to be exceedances. This Notification is therefore withdrawn
A25: 2022-03-30 | B25: A1 South TOC ELV Exceedence 1 x 1/2 hourly | E25: A sudden over pressurisation event occurred on Boiler 2 at 18:09hrs this was due to a suspected Gas Bottle explosion. Adjustments made to try and control emissions and to stabilise boiler from increase steam flow and over pressurisation. | H25: The investigation has confirmed by comparing the data on the duty and standby analysers that the elevated readings were due to a linearity test being carried out where the control had not switched analysers at the time of the testing so these readings are no longer considered to be exceedances. This Notification is therefore withdrawn
A26: 2022-04-24 | B26: A2 North TOC ELV Exceedence 1 x 1/2 hourly | E26: A sudden explosion of gas bottles was a sole cause of this exceedance. | H26: Improved management of waste inspections to reduce the risk of pressurised gas bottles and other non-conforming waste being unloaded into the bunkers and fed into the boiler feed hoppers. Bunker management system in place to allow mixing of waste.
A27: 2022-05-01 | B27: A1 South TOC ELV Exceedence 1 x 1/2 hourly | E27: A sudden explosion of gas bottles was a sole cause of this exceedance | H27: Improved management of waste inspections to reduce the risk of pressurised gas bottles and other non-conforming waste being unloaded into the bunkers and fed into the boiler feed hoppers. Bunker management system in place to allow mixing of waste.
A28: 2022-05-01 | B28: A2 North TOC ELV Exceedence 1 x 1/2 hourly | E28: A sudden explosion of gas bottles was a sole cause of this exceedance | H28: Improved management of waste inspections to reduce the risk of pressurised gas bottles and other non-conforming waste being unloaded into the bunkers and fed into the boiler feed hoppers. Bunker management system in place to allow mixing of waste.
A29: 2022-05-02 | B29: A1 South CO ELV Exceedence- Daily | E29: 28th April (loss of power to the site New switchgear | H29: New 11kV Switchgear was successfully commissioned and the fault on the system, which caused power distortion resolved. Bunker management system in place to allow mixing of waste.
A30: 2022-05-03 | B30: A1 South CO ELV Exceedence Daily | E30: Due to the events on 29th April (loss of power to the site – 11kV Switchgear replacement), waste was held in the bunkers for a longer period than during normal operation, this caused issues with stabilising the combustion of waste due to the change of quality and composition of waste. | H30: As for the resulting change in waste quality (due to the waste resident time in the bunker) in the event of a reoccurrence (boiler shutdown) the degraded bunker waste will be mixed in low quantities with better quality/less degraded waste before feeding the boilers. This would likely reduce the CO emissions by adding oxygen content for a complete combustion. And to also ensure any moisture is drained out of the waste there are plans to use a highpressure drainage cleaning from the bottom of the boiler. This action will be discussed in the next Environmental QAQC meeting. The Drainage system was cleaned during the outage this year
A31: 2022-05-03 | B31: A1 South TOC ELV Exceedence 2 x 1/2 hourly | E31: A sudden explosion of gas bottles was a cause of TOC exceedance. | H31: -A Review of the current waste inspections regime will be conducted to scope any feasible improvements that can be implemented to identify gas canisters prior to unloading into the bunker.
A32: 2022-05-07 | B32: A2 North TOC ELV Exceedence 1 x 1/2 hourly | E32: A sudden explosion of gas bottles was a cause of TOC exceedance. | H32: A Review of the current waste inspections regime will be conducted to scope any feasible improvements that can be implemented to identify gas canisters prior to unloading into the bunker'. Bunker management system in place to allow mixing of waste.
A33: 2022-05-12 | B33: A2 North CO ELV Exceedence Daily | E33: 29th April (loss of power to the site New switchgear | H33: As for the resulting change in waste quality (due to the waste resident time in the bunker) in the event of a reoccurrence (boiler shutdown) the degraded bunker waste will be mixed in low quantities with better quality/less degraded waste before feeding t
A34: 2022-06-02 | B34: A2 North TOC ELV Exceedence 1 x 1/2 hourly | E34: Cause - Gas Bottles in waste feed | H34: A Review of the current waste inspections regime will be conducted to scope any feasible improvements that can be implemented to identify gas canisters prior to unloading into the bunker'. Bunker management system in place to allow mixing of waste.
A35: 2022-06-10 | B35: A2 North TOC ELV Exceedence 1 x 1/2 hourly | E35: Cause - Gas Bottles in waste feed | H35: A Review of the current waste inspections regime will be conducted to scope any feasible improvements that can be implemented to identify gas canisters prior to unloading into the bunker'. Bunker management system in place to allow mixing of waste.
A36: 2022-06-18 | B36: A2 North TOC ELV Exceedence 1 x 1/2 hourly | E36: Cause - Gas Bottles in waste feed | H36: A Review of the current waste inspections regime will be conducted to scope any feasible improvements that can be implemented to identify gas canisters prior to unloading into the bunker'. Bunker management system in place to allow mixing of waste.
A37: 2022-06-29 | B37: A2 North TOC ELV Exceedence 1 x 1/2 hourly | E37: Cause - Gas Bottles in waste feed | H37: A Review of the current waste inspections regime will be conducted to scope any feasible improvements that can be implemented to identify gas canisters prior to unloading into the bunker'. Bunker management system in place to allow mixing of waste.
A38: 2022-07-13 | B38: A1 South TOC ELV Exceedence 1 x 1/2 hourly | E38: Cause - Gas Bottles in waste feed | H38: A Review of the current waste inspections regime will be conducted to scope any feasible improvements that can be implemented to identify gas canisters prior to unloading into the bunker'. Bunker management system in place to allow mixing of waste.
A39: 2022-07-16 | B39: A2 North TOC ELV Exceedence 1 x 1/2 hourly | E39: Cause - Gas Bottles in waste feed | H39: A Review of the current waste inspections regime will be conducted to scope any feasible improvements that can be implemented to identify gas canisters prior to unloading into the bunker'. Bunker management system in place to allow mixing of waste.
A40: 2022-07-29 | B40: A1 South TOC ELV Exceedence 1 x 1/2 hourly | E40: Cause - Gas Bottles in waste feed | H40: A Review of the current waste inspections regime will be conducted to scope any feasible improvements that can be implemented to identify gas canisters prior to unloading into the bunker'. Bunker management system in place to allow mixing of waste.
A41: 2022-08-08 | B41: A1 South TOC ELV Exceedence 1 x 1/2 hourly | E41: The tube leak is mainly caused by corrosion, heat damage or steel expansion from the exposed heat | H41: Specific inspections of the tubes are conducted during boiler outages due to the intrusive requirements of the work and will continue to be planned and conducted through coordination of the engineering department.
A42: 2022-08-09 | B42: A1 South CO & TOC ELV Exceedence | E42: The tube leak is mainly caused by corrosion, heat damage or steel expansion from the exposed heat | H42: Specific inspections of the tubes are conducted during boiler outages due to the intrusive requirements of the work and will continue to be planned and conducted through coordination of the engineering department.
A43: 2022-08-24 | B43: A1 South CO & TOC ELV Exceedence | E43: 11 x 10 minute CO, 1 x daily CO, 2 x 30 minute TOC exceedances resulting from Boiler 1 seized roller grate 1 and fault with one of the gas burners. Waste feed was ceased, a start-up burner was put in service and other adjustments were made to try to control emissions and stabilise the boiler. | H43: Roller grate and gas burner servicing and maintenance. Further control on temperatures and damper will be put in place.
A44: 2022-08-11 | B44: A2 North TOC ELV Exceedence | E44: Cause - Gas Bottles in waste feed | H44: A Review of the current waste inspections regime will be conducted to scope any feasible improvements that can be implemented to identify gas canisters prior to unloading into the bunker'. Bunker management system in place to allow mixing of waste.
A45: 2022-09-02 | B45: A1 South CO ELV Exceedence | E45: When investigating the cause of wet waste in the boilers, the waste ops team found a recent change to waste operation at the TBWRF that may contributes to increased tonnages of wet waste. Bulky waste is sometimes stored outside of the TBWRF prior to shredding. Improvements have been made to the disposal and transport operation to minimise the amount of bulky waste which is stored outside before being transferred to the building for shredding. | H45: changes have been made to the waste movement process to ensure that the bulky waste tipped into outside bays by borough vehicles is transferred into the TBWRF building at the end of the diver shifts. This is to minimise the waste storage outside and reduce chances of wet waste entering the bunkers.
A46: 2022-09-10 | B46: A1 South TOC ELV Exceedence 1 x 1/2 hourly | E46: Cause - Gas Bottles in waste feed | H46: A Review of the current waste inspections regime will be conducted to scope any feasible improvements that can be implemented to identify gas canisters prior to unloading into the bunker'. Bunker management system in place to allow mixing of waste.
A47: 2022-09-14 | B47: A1 South Particulate matter ELV Exceedence 1 x 1/2 hourly | E47: Due to damaged baghouse filters in FGT 4 compartment 1 Compartment 1 was immediately isolated and boiler loads were reduced. | H47: All bag filters across the bag house compartments are to be changed during the future FGT outage
A48: 2022-11-11 | B48: A1 South TOC ELV Exceedence 1 x 1/2 hourly | E48: Wet shredded waste | H48: changes have been made to the waste movement process to ensure that the bulky waste tipped into outside bays by borough vehicles is transferred into the TBWRF building at the end of the diver shifts. This is to minimise the waste storage outside and reduce chances of wet waste entering the bunkers
A49: 2022-11-13 | B49: A1 South CO ELV Exceedence | E49: Wet refuse from bottom of Bunkers 1 & 4 causing high levels of CO. The burners were also tripping during this period. All operational procedures were carried out to minimise the production of CO. | H49: changes have been made to the waste movement process to ensure that the bulky waste tipped into outside bays by borough vehicles is transferred into the TBWRF building at the end of the diver shifts. This is to minimise the waste storage outside and reduce chances of wet waste entering the bunkers.
A50: 2022-11-17 | B50: A1 South TOC ELV Exceedence 1 x 1/2 hourly | E50: A sudden explosion of gas bottles was a sole cause of this exceedance. | H50: A Review of the current waste inspections regime will be conducted to scope any feasible improvements that can be implemented to identify gas canisters prior to unloading into the bunker'. Bunker management system in place to allow mixing of waste.
A51: 2022-12-21 | B51: A2 North TOC ELV Exceedence 1 x 1/2 hourly | E51: Whilst returning Boiler No 4 to service after Riddling Conveyor repairs, both Burners tripped and failed to reset and required intervention from the Operations Team. Unfortunately, the furnace temperature dropped and we were unable to recover within the 30 minute period. This will be investigated by the operations team.
A67: Summary of any complaints received and actions to taken to resolve them.
A68: Date | B68: Summary of complaint [including Line/Reference] | E68: Reason * | H68: Measures taken to prevent reoccurrence
E74: * including whether substantiated by the operator or the EA

Sheet Improvements
A1: Annual Performance Report 2022 | E1: LondonEnergy Ltd
A3: Summary of Plant Improvements
A5: Summary of any efficiency improvements that have been completed within the year.
A6: New Steam turbine commissioning completed Dec 2022, with Dump mode scheduled for completion following TA4 rewind Installation of new switchgear with modern protection scheme for better, safer and more compliant control of HV electrical systems Cooling water systems - replacement of damaged/end of life CW plant to prevent breakdowns Completion of FGT PLC Upgrade, modernisation of control systems to mitigate obsolesence Replacement of 3off station air/DeNox compressors, to mitigate end of life and improve efficiancy
A16: Summary of any permit improvement conditions that have been completed within the year and the resulting environmental benefits.
A17: Implementation of DeNox analyzers local to each boiler, to allow more discrete control at new WIBREF compliant levels FGT Vac Pipework - implementation of a localised vacuum system to allow better handling of APCR when manual intervention is required
A27: Summary of any changes to the plant or operating techniques which required a variation to the permit and a summary of the resulting environmental impact.
A38: Summary of any other improvements made to the plant or planned to be made and a summary of the resulting environmental benefits.
A39: New ash extraction equipment, allowing more efficient removal of APCR from the FGT's Turbine vibration monitoring - installation of components complete, system pending for 2023, outages required Bunker house extraction system - mitigation of CO issues within crane gallery Replacement of FGT filter bags during 2023 outages Implementation of many service contracts for items of plant: MKE/ABB for inverter drives and cranes, Sulzer for turbines, HPC for compressors, Thomson for Boilers - to tie in contractors to end of life agreements, giving us resilience for the duration TA4 Rewind - mitigation of breakdown in stator integrity, to allow waste throughput at maximum capacity to end of life

Sheet Public Liasion
A1: Annual Performance Report 2022 | E1: LondonEnergy Ltd
A3: Details of Public & Stakeholder Liasion
A5: Summary of events held during the reporting year.
A6: Date | C6: Description
A7: 2022-02-02 | C7: In partnership with Enfield Council, LondonEnergy delivered on what happens to waste in north London in partnerships with Enfield Councils Street Cleansing team to an Enfield Primary School.
A9: 2022-05-19 | C9: LondonEnergy exhibited at the Camden Jobs and Skills Event to promote current job vacancies to people living in Camden.
A11: 2022-11-17 | C11: The HR team exhibited at the UK Career Fair to promote our operational roles to local people living in North London.
A13: 2022-12-05 | C13: Transition Director, LondonEnergy joined the NLWA to speak on a panel on the North London Heat and Power Project construction progress and our operational readiness plans.
A16: List of events planned for next year
A17: Date | C17: Description
A29: If you wish to be involved in the public liasion programme, please contact _________________ deanna.donaldson@londonenergyltd.com

Sheet CO2 N2O
A1: Annual Performance Report 2022 | C1: LondonEnergy Ltd
A3: Carbon dioxide emissions and biogenic content of waste inputs | E3: Notes:
A5: Carbon dioxide emissions (all types of plant)
A6: Annual mass of carbon dioxide released | B6: x tonnes | C6: 319474.9882
A7: Annual mass of carbon dioxide released per tonne of waste burned | B7: x tonnes | C7: =C6/'Operational Data'!G21 -> 0.6536840142
A8: Annual mass of carbon dioxide released per MWh of energy exported | B8: x tonnes | C8: =C6/'Operational Data'!G25 -> 1.518503851
A9: Description of how annual carbon dioxide mass emission has been calculated | B9: Data from CO2 CEMS | E9: Note 1: Where available, data from CO2 CEMS should be used. Otherwise, where no CEMS data is available, a suitable emissions factor should be used based on the tonnage of waste burned e.g.0.992 tCO2/t waste as per Tolvik report 2021, or other justified emissions factor - refer to embedded Environment Agency guidance note above or updated version for suitable descriptive text.
A11: Nitrous oxide emissions (only plants which use ammonia or urea to abate NOx emissions)
A12: Annual mass emissions of nitrous oxide | B12: x tonnes | C12: ='[3]Release to air'!$J$40 -> 24.04204435
A13: Description of how annual nitrous oxide mass emission has been calculated | B13: Data from NOx CEMS bi-annual monitoring | E13: Note 2: Where available, data from N2O CEMS should be used, or if no CEMS data is available, from periodic monitoring. Otherwise, a suitable emissions factor should be used based on the tonnage of waste burned e.g. 0.0981 kgN20/t waste as per 2021 Pollution Inventory data for plants with urea-based SNCR - refer to embedded Environment Agency guidance note above or updated version for suitable descriptive text.
A14: Total annual carbon dioxide and nitrous oxide emissions as carbon dioxide equivalent (whereby 1 t nitrous oxide is equivalent to 298 t carbon dioxide) | B14: x tonnes CO2e | C14: =(C12*298)+C6 -> 326639.5175
A16: Biogenic fraction of the waste and biogenic CO2 emissions (only plants burning residual municipal waste, refuse derived fuel or solid recovered fuel)
A17: Yearly average biogenic percentage of the waste by net calorific value (NCV) | B17: x % | C17: 30.9 | E17: =C17*'Operational Data'!G18 -> 15101757 | F17: =C17*C6/100 -> 98717.77137 | G17: =C6-F17 -> 220757.2169 | H17: ='CO2 N2O'!C6*0.63 -> 201269.2426
A18: Description of how biogenic NCV percentage has been calculated or estimated | B18: Waste sampling data | E18: Note 3: Where available, data from waste sampling should be used; otherwise, an estimated figure with justification can be used, or a figure assumed on the basis of a national average e.g. 2017 WRAP data for residual waste of 51.8% biogenic energy content - refer to embedded Environment Agency guidance note above or updated version for suitable descriptive text, quoting standards where relevant.
A19: Percentage of total carbon dioxide emissions arising from biogenic waste | B19: x % | C19: =C17 -> 30.9
A20: Description of how percentage biogenic carbon dioxide emissions have been calculated | B20: the measured or estimated biogenic fraction by net calorific value can be assumed to be the same as the biogenic CO2 fraction of the total CO2 emissions from the plant | E20: Note 4: Examples include direct measurement via C14 method or BIOMA software - refer to embedded Environment Agency guidance note above or updated version for suitable descriptive text, quoting standards where relevant. Otherwise, as an approximation (and in lieu of any more accurate metrics which may be developed in future), the measured or estimated biogenic fraction by net calorific value can be assumed to be the same as the biogenic CO2 fraction of the total CO2 emissions from the plant.
A22: Comments:

Sheet Residue Quality
A1: Annual Performance Report 2022 | E1: LondonEnergy Ltd
A3: Residue Quality Monitoring Requirements
A5: Summary of monitoring undertaken and compliance
A6: Bi-monthly IBA hazardous waste assessments
A13: Commentary on any specific events
A14: Date & Event | C14: Description
A15: NA
A27: Residue Quality Monitoring Results
A28: Parameter (unit) | C28: Limit | D28: Normal Operation
D29: Bottom ash | F29: APC Residues
A30: Loss on Ignition (average %) | C30: <5% | D30: -
A31: Total Organic Carbon (average %) | C31: <3% | D31: 0.62
A32: No. of Assessments Undertaken | C32: --- | D32: 23 | F32: 4
A33: No. of Hazardous Results | C33: --- | D33: 0
A35: Comments :

Sheet Water
A1: Annual Performance Report 2022 | E1: LondonEnergy Ltd
A3: Emissions to Water
A5: Summary of monitoring undertaken and compliance
A6: Quarterly monitoring of emissions to sewer. Continuous sampling is undertaken. Flow weighted automatic seven day sample is collected. Samples are combined to give a monthly sample, one monthly sample to be analysed per quarter).
A13: Commentary on any specific events
A14: Date & Event | C14: Description
A15: NA | C15: NA
A22: Emissions to Water / Sewer
A23: Parameter | D23: Monitoring Frequency | G23: Limit | H23: Target | I23: Max. | J23: Average
A24: Dieldrin ng/l | B24: Dieldrin ng/l | C24: Dieldrin ng/l | D24: Quarterly | G24: 50 ng/l | H24: NA | I24: NA | J24: 22.5
A25: Gamma- Hexachlorocyclohexane ng/l | B25: Gamma- Hexachlorocyclohexane ng/l | C25: Gamma- Hexachlorocyclohexane ng/l | D25: Quarterly | G25: 100 ng/l | H25: NA | I25: NA | J25: 22.5
A26: Polychlorinated biphenyls ng/l | B26: Polychlorinated biphenyl 28 ng/l | C26: Polychlorinated biphenyl 28 ng/l | D26: Quarterly | G26: 50 ng/l | H26: NA | I26: NA | J26: 10
A27: Trifluralin ng/l | B27: Trifluralin ng/l | C27: Trifluralin ng/l | D27: Quarterly | G27: 50 ng/l | H27: NA | I27: NA | J27: 22.5
A28: Hexachlorobenzene ng/l | B28: Hexachlorobenzene ng/l | C28: Hexachlorobenzene ng/l | D28: Quarterly | G28: 300 ng/l | H28: NA | I28: NA | J28: 22.5
A29: Hexachlorobutadiene ng/l | B29: Hexachlorobutadiene ng/l | C29: Hexachlorobutadiene ng/l | D29: Quarterly | G29: 50 ng/l | H29: NA | I29: NA | J29: 27.5
A30: Trichlorobenzene ng/l | B30: Trichlorobenzene ng/l | C30: Trichlorobenzene ng/l | D30: Quarterly | G30: 50 ng/l | H30: NA | I30: NA | J30: 22.5
A31: Dichlorvos ng/l | B31: Dichlorvos ng/l | C31: Dichlorvos ng/l | D31: Quarterly | G31: 50 ng/l | H31: NA | I31: NA | J31: 22.5
A32: Fenitrothion ng/l | B32: Fenitrothion ng/l | C32: Fenitrothion ng/l | D32: Quarterly | G32: 50 ng/l | H32: NA | I32: NA | J32: 22.5
A33: Simazine ng/l | B33: Simazine ng/l | C33: Simazine ng/l | D33: Quarterly | G33: 300 ng/l | H33: NA | I33: NA | J33: 67.5
A34: Atrazine ng/l | B34: Atrazine ng/l | C34: Atrazine ng/l | D34: Quarterly | G34: 300 ng/l | H34: NA | I34: NA | J34: 67.5
A35: Pentachlorophenol & it`s compounds ng/l | B35: Pentachlorophenol & it`s compounds ng/l | C35: Pentachlorophenol & it`s compounds ng/l | D35: Quarterly | G35: 300 ng/l | H35: NA | I35: NA | J35: 42.5
A36: Total Cadmium ug/l | B36: Total Cadmium ng/l | C36: Total Cadmium ng/l | D36: Quarterly | G36: 50 μg/l | H36: NA | I36: NA | J36: 1
A37: Total Mercury ug/l | B37: Total Mercury ng/l | C37: Total Mercury ng/l | D37: Quarterly | G37: 10 μg/l | H37: NA | I37: NA | J37: 0.5275
A38: Chromium, copper, lead, nickel,silver and zinc in total mg/l | D38: Quarterly | G38: 5 mg/l | H38: NA | I38: NA | J38: 1.3425
A39: Organo-tin | D39: Quarterly | G39: 100 ng/l | H39: NA | I39: NA | J39: 42.7

Sheet Air (periodic)
A1: Annual Performance Report 2022 | E1: LondonEnergy Ltd
A3: Emissions to Air (periodically monitored)
A5: Summary of monitoring undertaken, standards used and compliance | I5: Notes:
A6: Quarterly and biannual monitoring using standards defined in EPR/YP3033BE | I6: Template may require adjustment for any bespoke monitoring requirements of permit.
A9: Results of emissions to air that are periodically monitored
A10: Substance | C10: Ref. Period | D10: Emission Limit Value | F10: Average | I10: User to add additional tables as necessary, depending on whether quarterly or bi-annual reporting is required for the compliance year
F11: A1 | G11: A2
A12: Hydrogen fluoride | C12: 1 hr | D12: 2 mg/m3 | F12: ='[3]Release to air'!$F$4 -> 0.04375 | G12: ='[3]Release to air'!$F$22 -> 0.0355
A13: Cd and Th and their compounds | C13: 6-8hrs | D13: 0.05 mg/m3 | F13: ='[3]Release to air'!$F$8 -> 0.0015225 | G13: ='[3]Release to air'!$F$26 -> 0.0015
A14: Hg and its compounds | C14: 6-8hrs | D14: 0.05 mg/m3 | F14: ='[3]Release to air'!$F$9 -> 0.0009075 | G14: ='[3]Release to air'!$F$27 -> 0.0011625
A15: Sb, As, Pb, Cr, Co, Cu, Mn, Ni, V and their compounds | C15: 6-8hrs | D15: 0.5 mg/m3 | F15: ='[3]Release to air'!$F$7 -> 0.31475 | G15: ='[3]Release to air'!$F$25 -> 0.27525
A16: Dioxins & Furans (I-TEQ) | C16: 6-8hrs | D16: 0.1 ng/m3 | F16: ='[3]Release to air'!$F$6 -> 0.01385 | G16: ='[3]Release to air'!$F$24 -> 0.0059
A17: PCBs (WHO-TEQ Humans / Mammals) | C17: 6-8hrs | D17: None set ng/m3 | F17: ='[3]Release to air'!$F$76 -> 0.0027 | G17: ='[3]Release to air'!$F$99 -> 0.00084
A18: PCBs (WHO-TEQ Fish) | C18: 6-8hrs | D18: None set ng/m3 | F18: ='[3]Release to air'!$F$77 -> 5.5e-05 | G18: ='[3]Release to air'!$F$100 -> 4.8e-05
A19: PCBs (WHO-TEQ Birds) | C19: 6-8hrs | D19: None set ng/m3 | F19: ='[3]Release to air'!$F$78 -> 0.00295 | G19: ='[3]Release to air'!$F$101 -> 0.00375
A20: Dioxins & Furans (WHO-TEQ Humans / Mammals) | C20: 6-8hrs | D20: None set ng/m3 | F20: ='[3]Release to air'!$F$79 -> 0.01385 | G20: ='[3]Release to air'!$F$102 -> 0.00605
A21: Dioxins & Furans (WHO-TEQ Fish) | C21: 6-8hrs | D21: None set ng/m3 | F21: ='[3]Release to air'!$F$80 -> 0.0149 | G21: ='[3]Release to air'!$F$103 -> 0.0064
A22: Dioxins & Furans (WHO-TEQ Birds) | C22: 6-8hrs | D22: None set ng/m3 | F22: ='[3]Release to air'!$F$81 -> 0.03445 | G22: ='[3]Release to air'!$F$104 -> 0.0049
A23: Anthanthrene | C23: 6-8hrs | D23: None set µg/m3 | F23: ='[3]Release to air'!$F$60 -> 0.0026 | G23: ='[3]Release to air'!$F$83 -> 0.0022
A24: Benzo(a)anthracene | C24: 6-8hrs | D24: None set µg/m3 | F24: ='[3]Release to air'!$F$60 -> 0.0026 | G24: ='[3]Release to air'!$F$83 -> 0.0022
A25: Benzo(a)pyrene | C25: 6-8hrs | D25: None set µg/m3 | F25: ='[3]Release to air'!$F$60 -> 0.0026 | G25: ='[3]Release to air'!$F$83 -> 0.0022
A26: Benzo(b)fluoranthene | C26: 6-8hrs | D26: None set µg/m3 | F26: ='[3]Release to air'!$F$60 -> 0.0026 | G26: ='[3]Release to air'!$F$83 -> 0.0022
A27: Benzo(b)naptho(2,1-d) thiophene | C27: 6-8hrs | D27: None set µg/m3 | F27: ='[3]Release to air'!$F$64 -> 0.01705 | G27: ='[3]Release to air'!$F$87 -> 0.01275
A28: Benzo(c)phenanthrene | C28: 6-8hrs | D28: None set µg/m3 | F28: ='[3]Release to air'!$F$60 -> 0.0026 | G28: ='[3]Release to air'!$F$88 -> 0.0024
A29: Benzo(ghi)perylene | C29: 6-8hrs | D29: None set µg/m3 | F29: ='[3]Release to air'!$F$60 -> 0.0026 | G29: ='[3]Release to air'!$F$83 -> 0.0022
A30: Benzo(k)fluoranthene | C30: 6-8hrs | D30: None set µg/m3 | F30: ='[3]Release to air'!$F$60 -> 0.0026 | G30: ='[3]Release to air'!$F$83 -> 0.0022
A31: Cholanthrene | C31: 6-8hrs | D31: None set µg/m3 | F31: ='[3]Release to air'!$F$60 -> 0.0026 | G31: ='[3]Release to air'!$F$83 -> 0.0022
A32: Chrysene | C32: 6-8hrs | D32: None set µg/m3 | F32: ='[3]Release to air'!$F$60 -> 0.0026 | G32: ='[3]Release to air'!$F$83 -> 0.0022
A33: Cyclopenta(cd)pyrene | C33: 6-8hrs | D33: None set µg/m3 | F33: ='[3]Release to air'!$F$60 -> 0.0026 | G33: ='[3]Release to air'!$F$83 -> 0.0022
A34: Dibenzo(ai)pyrene | C34: 6-8hrs | D34: None set µg/m3 | F34: ='[3]Release to air'!$F$60 -> 0.0026 | G34: ='[3]Release to air'!$F$83 -> 0.0022
A35: Dibenzo(ah)anthracene | C35: 6-8hrs | D35: None set µg/m3 | F35: ='[3]Release to air'!$F$60 -> 0.0026 | G35: ='[3]Release to air'!$F$83 -> 0.0022
A36: Fluoranthene | C36: 6-8hrs | D36: None set µg/m3 | F36: ='[3]Release to air'!$F$73 -> 0.0155 | G36: ='[3]Release to air'!$F$96 -> 0.0157
A37: Indeno(123-cd) pyrene | C37: 6-8hrs | D37: None set µg/m3 | F37: ='[3]Release to air'!$F$60 -> 0.0026 | G37: ='[3]Release to air'!$F$83 -> 0.0022
A38: Naphthalene | C38: 6-8hrs | D38: None set µg/m3 | F38: ='[3]Release to air'!$F$75 -> 0.85 | G38: ='[3]Release to air'!$F$98 -> 0.78
A39: Comments :

Sheet Air (CEMS)
A1: Annual Performance Report 2022 | E1: LondonEnergy Ltd
M2: Notes:
A3: Emissions to Air (continously monitored) | M3: Template may require adjustment for any bespoke monitoring requirements of permit
M4: Report to 2 decimal places, i.e. xx.xx%
A5: Summary of monitoring undertaken, standards used and compliance
A6: Continuous measurement using CEMS as per EPR/YP3033BE
A11: Results of emissions to air that are continuously monitored (maximum and average values for each line)
A12: Substance | B12: Reference Period | C12: Emission Limit Value | D12: A1 | F12: A2
D13: Max. | E13: Avg. | F13: Max. | G13: Avg.
A14: Oxides of nitrogen | B14: Daily mean | C14: 200 mg/m3 | D14: =NOx!O19 -> 198 | E14: =NOx!N19 -> 154.6166667 | F14: =NOx!O34 -> 196.8 | G14: =NOx!N34 -> 170.95
B15: ½ hourly mean | C15: 400 mg/m3 | D15: =NOx!M19 -> 329.2 | E15: =NOx!L19 -> 154.6166667 | F15: =NOx!M34 -> 303.6 | G15: =NOx!L34 -> 170.95
A16: Particulates | B16: Daily mean | C16: 10 mg/m3 | D16: =Particulates!O19 -> 11 | E16: =Particulates!N19 -> 1.691666667 | F16: =Particulates!O34 -> 5.1 | G16: =Particulates!N34 -> 1.416666667
B17: ½ hourly mean | C17: 30 mg/m3 | D17: =Particulates!M19 -> 48.4 | E17: =Particulates!L19 -> 1.691666667 | F17: =Particulates!M34 -> 85.7 | G17: =Particulates!L34 -> 1.416666667
A18: Total Organic Carbon | B18: Daily mean | C18: 10 mg/m3 | D18: =TOC!O19 -> 47.8 | E18: =Particulates!N19 -> 1.691666667 | F18: =TOC!O34 -> 3.5 | G18: =TOC!N34 -> 1.025
B19: ½ hourly mean | C19: 20 mg/m3 | D19: =TOC!M19 -> 318.8 | E19: =Particulates!L19 -> 1.691666667 | F19: =TOC!M34 -> 95.8 | G19: =TOC!L34 -> 1.025
A20: Hydrogen chloride | B20: Daily mean | C20: 10 mg/m3 | D20: =HCl!O19 -> 9.4 | E20: =HCl!N19 -> 5.866666667 | F20: =HCl!O34 -> 9.1 | G20: =HCl!N34 -> 5.55
B21: ½ hourly mean | C21: 60 mg/m3 | D21: =HCl!M19 -> 42.1 | E21: =HCl!L19 -> 6.008333333 | F21: =HCl!M34 -> 59.5 | G21: =HCl!L34 -> 5.466666667
A22: Sulphur dioxide | B22: Daily mean | C22: 50 mg/m3 | D22: ='SO2'!O19 -> 29.7 | E22: ='SO2'!N19 -> 11.5 | F22: ='SO2'!O34 -> 43.7 | G22: ='SO2'!N34 -> 25.64166667
B23: ½ hourly mean | C23: 200 mg/m3 | D23: ='SO2'!M19 -> 136.2 | E23: ='SO2'!L19 -> 11.5 | F23: ='SO2'!M34 -> 128.2 | G23: ='SO2'!L34 -> 25.575
A24: Carbon monoxide | B24: Daily mean | C24: 50 mg/m3 | D24: ='CO 95% 10 min'!Q19 -> 115.9 | E24: ='CO 95% 10 min'!P19 -> 29.425 | F24: ='CO 95% 10 min'!Q34 -> 61.4 | G24: ='CO 95% 10 min'!P34 -> 25.825
B25: 95%ile 10-min avg * | C25: 150 mg/m3 * | D25: ='CO 95% 10 min'!O19 -> 1718.6 | E25: ='CO 95% 10 min'!M19 -> 516.8 | F25: ='CO 95% 10 min'!O34 -> 1151.7 | G25: ='CO 95% 10 min'!M34 -> 503.1
A26: Ammonia | B26: Daily mean | C26: No limit set | D26: ='NH3'!O19 -> 21.5 | E26: ='NH3'!N19 -> 5.466666667 | F26: ='NH3'!O34 -> 33.3 | G26: ='NH3'!N34 -> 7.875
A27: * = delete or amend as appropriate
A28: Comments :

Sheet HCl
A1: Annual Performance Report 2022 | E1: LondonEnergy Ltd
A3: Monitoring of Hydrogen Chloride emissions | D3: Whole Installation | G3: See Notes in Cell Q3 | J3: Monitoring of Hydrogen Chloride emissions | N3: Per Combustion Line | Q3: Notes:
Q4: User to add logic to complete Whole installation, Table A5:G18. From the data in Per Combustion Line, Table J6:O79, subject to No. of lines installed
A5: mg/Nm3 | B5: 1/2 Hourly Reference Periods | E5: Daily Reference Periods
A6: 2022 | B6: 1/2 hourly HCl ELV | C6: Monthly 1/2 hourly mean | D6: Highest 1/2 hourly maximum | E6: Daily HCl ELV | F6: Monthly daily mean | G6: Highest daily maximum | J6: 2022 | K6: mg/Nm3 | L6: Monthly 1/2 hourly mean | M6: Monthly 1/2 hourly maximum | N6: Monthly daily mean | O6: Monthly daily maximum
A7: Jan | B7: 60 | C7: =AVERAGE(L7,L22) -> 6 | D7: =MAX(M7,M22) -> 40.1 | E7: 10 | F7: =AVERAGE(N7,N22) -> 6 | G7: =MAX(O7,O22) -> 9.3 | J7: A1 | K7: Jan | L7: 7.1 | M7: 40.1 | N7: 7.1 | O7: 9.3
A8: Feb | B8: 60 | C8: =AVERAGE(L8,L23) -> 5.5 | D8: =MAX(M8,M23) -> 29.3 | E8: 10 | F8: =AVERAGE(N8,N23) -> 5.5 | G8: =MAX(O8,O23) -> 8.8 | K8: Feb | L8: 5.4 | M8: 27.4 | N8: 5.4 | O8: 8.8
A9: Mar | B9: 60 | C9: =AVERAGE(L9,L24) -> 6.5 | D9: 38.5 | E9: 10 | F9: =AVERAGE(N9,N24) -> 5.65 | G9: 8.6 | K9: Mar | L9: 7.6 | M9: 38.5 | N9: 5.9 | O9: 7.6 | Q9: Whole Installation table A5:G18:
A10: Apr | B10: 60 | C10: =AVERAGE(L10,L25) -> 4.85 | D10: 59.5 | E10: 10 | F10: =AVERAGE(N10,N25) -> 4.85 | G10: 8.9 | K10: Apr | L10: 5.1 | M10: 35.9 | N10: 5.1 | O10: 8.9 | Q10: Mean: for 1/2 hourly and daily periods calculate mean of values across all operational combustion lines for the month
A11: May | B11: 60 | C11: =AVERAGE(L11,L26) -> 4.2 | D11: 49.3 | E11: 10 | F11: =AVERAGE(N11,N26) -> 4.2 | G11: 8.4 | K11: May | L11: 4 | M11: 33.3 | N11: 4 | O11: 7.9
A12: Jun | B12: 60 | C12: =AVERAGE(L12,L27) -> 5.25 | D12: 37.7 | E12: 10 | F12: =AVERAGE(N12,N27) -> 5.25 | G12: 8.9 | K12: Jun | L12: 5.6 | M12: 34.2 | N12: 5.6 | O12: 8.6
A13: Jul | B13: 60 | C13: =AVERAGE(L13,L28) -> 5.15 | D13: 42.1 | E13: 10 | F13: =AVERAGE(N13,N28) -> 5.15 | G13: 8.5 | K13: Jul | L13: 4.8 | M13: 42.1 | N13: 4.8 | O13: 7.8 | Q13: Maximum: for 1/2 hourly and daily periods use the highest value across all operational combustion lines for the month
A14: Aug | B14: 60 | C14: =AVERAGE(L14,L29) -> 5.45 | D14: 26.9 | E14: 10 | F14: =AVERAGE(N14,N29) -> 5.45 | G14: 9.1 | K14: Aug | L14: 5.7 | M14: 21 | N14: 5.7 | O14: 8.9
A15: Sep | B15: 60 | C15: =AVERAGE(L15,L30) -> 5.3 | D15: 34.8 | E15: 10 | F15: =AVERAGE(N15,N30) -> 5.8 | G15: 8.7 | K15: Sep | L15: 5.8 | M15: 27.6 | N15: 5.8 | O15: 8.7
A16: Oct | B16: 60 | C16: =AVERAGE(L16,L31) -> 7.05 | D16: 44.8 | E16: 10 | F16: =AVERAGE(N16,N31) -> 7.05 | G16: 8.6 | K16: Oct | L16: 7.1 | M16: 16.9 | N16: 7.1 | O16: 8.3
A17: Nov | B17: 60 | C17: =AVERAGE(L17,L32) -> 7.05 | D17: 29.6 | E17: 10 | F17: =AVERAGE(N17,N32) -> 7.05 | G17: 9.4 | K17: Nov | L17: 7 | M17: 17.8 | N17: 7 | O17: 9.4
A18: Dec | B18: 60 | C18: =AVERAGE(L18,L33) -> 6.55 | D18: 35.6 | E18: 10 | F18: =AVERAGE(N18,N33) -> 6.55 | G18: 9 | K18: Dec | L18: 6.9 | M18: 35.6 | N18: 6.9 | O18: 9
K19: Annual | L19: =AVERAGE(L7:L18) -> 6.008333333 | M19: =MAX(M7:M18) -> 42.1 | N19: =AVERAGE(N7:N18) -> 5.866666667 | O19: =MAX(O7:O18) -> 9.4
J21: 2022 | K21: mg/Nm3 | L21: Monthly 1/2 hourly mean | M21: Monthly 1/2 hourly maximum | N21: Monthly daily mean | O21: Monthly daily maximum
J22: A2 | K22: Jan | L22: 4.9 | M22: 23.1 | N22: 4.9 | O22: 8.1
K23: Feb | L23: 5.6 | M23: 29.3 | N23: 5.6 | O23: 8.6
K24: Mar | L24: 5.4 | M24: 30.4 | N24: 5.4 | O24: 8.6
K25: Apr | L25: 4.6 | M25: 59.5 | N25: 4.6 | O25: 8.8
K26: May | L26: 4.4 | M26: 49.3 | N26: 4.4 | O26: 8.4
K27: Jun | L27: 4.9 | M27: 37.7 | N27: 4.9 | O27: 8.9
K28: Jul | L28: 5.5 | M28: 37.4 | N28: 5.5 | O28: 8.5
K29: Aug | L29: 5.2 | M29: 26.9 | N29: 5.2 | O29: 9.1
K30: Sep | L30: 4.8 | M30: 34.8 | N30: 5.8 | O30: 8.1
K31: Oct | L31: 7 | M31: 44.8 | N31: 7 | O31: 8.6
K32: Nov | L32: 7.1 | M32: 29.6 | N32: 7.1 | O32: 9
K33: Dec | L33: 6.2 | M33: 29.2 | N33: 6.2 | O33: 8.1
K34: Annual | L34: =AVERAGE(L22:L33) -> 5.466666667 | M34: =MAX(M22:M33) -> 59.5 | N34: =AVERAGE(N22:N33) -> 5.55 | O34: =MAX(O22:O33) -> 9.1
J36: 20xx | K36: mg/Nm3 | L36: Monthly 1/2 hourly mean | M36: Monthly 1/2 hourly maximum | N36: Monthly daily mean | O36: Monthly daily maximum
J37: A3 | K37: Jan
K38: Feb
K39: Mar
K40: Apr
K41: May
K42: Jun
K43: Jul
K44: Aug
K45: Sep
K46: Oct
K47: Nov
A48: Comments : | K48: Dec
K49: Annual | M49: 0 | O49: 0
J51: 20xx | K51: mg/Nm3 | L51: Monthly 1/2 hourly mean | M51: Monthly 1/2 hourly maximum | N51: Monthly daily mean | O51: Monthly daily maximum
J52: A4 | K52: Jan
K53: Feb
K54: Mar
K55: Apr
K56: May
K57: Jun
K58: Jul
K59: Aug
K60: Sep
K61: Oct
K62: Nov
K63: Dec
K64: Annual | M64: 0 | O64: 0
J66: 20xx | K66: mg/Nm3 | L66: Monthly 1/2 hourly mean | M66: Monthly 1/2 hourly maximum | N66: Monthly daily mean | O66: Monthly daily maximum
J67: A5 | K67: Jan
K68: Feb
K69: Mar
K70: Apr
K71: May
K72: Jun
K73: Jul
K74: Aug
K75: Sep
K76: Oct
K77: Nov
K78: Dec
K79: Annual | M79: 0 | O79: 0

Sheet SO2
A1: Annual Performance Report 2022 | E1: LondonEnergy Ltd
A3: Monitoring of Sulphur dioxide emissions | D3: Whole Installation | G3: See Notes in Cell Q3 | J3: Monitoring of Sulphur dioxide emissions | N3: Per Combustion Line | Q3: Notes:
Q4: User to add logic to complete Whole installation, Table A5:G18. From the data in Per Combustion Line, Table J6:O79, subject to No. of lines installed
A5: mg/Nm3 | B5: 1/2 Hourly Reference Periods | E5: Daily Reference Periods
A6: 2022 | B6: 1/2 hourly SO2 ELV | C6: Monthly 1/2 hourly mean | D6: Highest 1/2 hourly maximum | E6: Daily SO2 ELV | F6: Monthly daily mean | G6: Highest daily maximum | J6: 2022 | K6: mg/Nm3 | L6: Monthly 1/2 hourly mean | M6: Monthly 1/2 hourly maximum | N6: Monthly daily mean | O6: Monthly daily maximum
A7: Jan | B7: 200 | C7: =AVERAGE(L7,L22) -> 19.3 | D7: =MAX(M7,M22) -> 109 | E7: 50 | F7: =AVERAGE(N7,N22) -> 19.3 | G7: =MAX(O7,O22) -> 40.6 | J7: A1 | K7: Jan | L7: 12.7 | M7: 74.9 | N7: 12.7 | O7: 21.4
A8: Feb | B8: 200 | C8: =AVERAGE(L8,L23) -> 21.1 | D8: =MAX(M8,M23) -> 97.7 | E8: 50 | F8: =AVERAGE(N8,N23) -> 21.1 | G8: =MAX(O8,O23) -> 37.4 | K8: Feb | L8: 14.4 | M8: 75.3 | N8: 14.4 | O8: 29.7
A9: Mar | B9: 200 | C9: =AVERAGE(L9,L24) -> 22.45 | D9: 116.1 | E9: 50 | F9: =AVERAGE(N9,N24) -> 22.45 | G9: 42.3 | K9: Mar | L9: 12.4 | M9: 74 | N9: 12.4 | O9: 24.4 | Q9: Whole Installation table A5:G18:
A10: Apr | B10: 200 | C10: =AVERAGE(L10,L25) -> 18.8 | D10: 136.2 | E10: 50 | F10: =AVERAGE(N10,N25) -> 18.8 | G10: 40.9 | K10: Apr | L10: 8.8 | M10: 136.2 | N10: 8.8 | O10: 17 | Q10: Mean: for 1/2 hourly and daily periods calculate mean of values across all operational combustion lines for the month
A11: May | B11: 200 | C11: =AVERAGE(L11,L26) -> 15.5 | D11: 121.4 | E11: 50 | F11: =AVERAGE(N11,N26) -> 15.5 | G11: 40.7 | K11: May | L11: 10.5 | M11: 99.5 | N11: 10.5 | O11: 26.1
A12: Jun | B12: 200 | C12: =AVERAGE(L12,L27) -> 20.5 | D12: 128.2 | E12: 50 | F12: =AVERAGE(N12,N27) -> 20.5 | G12: 38.5 | K12: Jun | L12: 13.2 | M12: 86.7 | N12: 13.2 | O12: 23.5
A13: Jul | B13: 200 | C13: =AVERAGE(L13,L28) -> 18.85 | D13: 92.6 | E13: 50 | F13: =AVERAGE(N13,N28) -> 18.85 | G13: 43.7 | K13: Jul | L13: 13.9 | M13: 83.1 | N13: 13.9 | O13: 23.7 | Q13: Maximum: for 1/2 hourly and daily periods use the highest value across all operational combustion lines for the month
A14: Aug | B14: 200 | C14: =AVERAGE(L14,L29) -> 20.2 | D14: 96 | E14: 50 | F14: =AVERAGE(N14,N29) -> 20.2 | G14: 38 | K14: Aug | L14: 13.4 | M14: 60.5 | N14: 13.4 | O14: 25.7
A15: Sep | B15: 200 | C15: =AVERAGE(L15,L30) -> 16.2 | D15: 85.1 | E15: 50 | F15: =AVERAGE(N15,N30) -> 16.2 | G15: 33.4 | K15: Sep | L15: 10.4 | M15: 71.7 | N15: 10.4 | O15: 15.4
A16: Oct | B16: 200 | C16: =AVERAGE(L16,L31) -> 19.1 | D16: 79 | E16: 50 | F16: =AVERAGE(N16,N31) -> 19.5 | G16: 34.3 | K16: Oct | L16: 10.2 | M16: 42.6 | N16: 10.2 | O16: 16.4
A17: Nov | B17: 200 | C17: =AVERAGE(L17,L32) -> 13.1 | D17: 45.7 | E17: 50 | F17: =AVERAGE(N17,N32) -> 13.1 | G17: 29.5 | K17: Nov | L17: 8.8 | M17: 42.3 | N17: 8.8 | O17: 15.1
A18: Dec | B18: 200 | C18: =AVERAGE(L18,L33) -> 17.35 | D18: 89.1 | E18: 50 | F18: =AVERAGE(N18,N33) -> 17.35 | G18: 32.9 | K18: Dec | L18: 9.3 | M18: 40.1 | N18: 9.3 | O18: 13.9
K19: Annual | L19: =AVERAGE(L7:L18) -> 11.5 | M19: =MAX(M7:M18) -> 136.2 | N19: =AVERAGE(N7:N18) -> 11.5 | O19: =MAX(O7:O18) -> 29.7
J21: 2022 | K21: mg/Nm3 | L21: Monthly 1/2 hourly mean | M21: Monthly 1/2 hourly maximum | N21: Monthly daily mean | O21: Monthly daily maximum
J22: A2 | K22: Jan | L22: 25.9 | M22: 109 | N22: 25.9 | O22: 40.6
K23: Feb | L23: 27.8 | M23: 97.7 | N23: 27.8 | O23: 37.4
K24: Mar | L24: 32.5 | M24: 116.1 | N24: 32.5 | O24: 42.3
K25: Apr | L25: 28.8 | M25: 125.9 | N25: 28.8 | O25: 40.9
K26: May | L26: 20.5 | M26: 121.4 | N26: 20.5 | O26: 40.7
K27: Jun | L27: 27.8 | M27: 128.2 | N27: 27.8 | O27: 38.5
K28: Jul | L28: 23.8 | M28: 92.6 | N28: 23.8 | O28: 43.7
K29: Aug | L29: 27 | M29: 96 | N29: 27 | O29: 38
K30: Sep | L30: 22 | M30: 85.1 | N30: 22 | O30: 33.4
K31: Oct | L31: 28 | M31: 79 | N31: 28.8 | O31: 34.3
K32: Nov | L32: 17.4 | M32: 45.7 | N32: 17.4 | O32: 29.5
K33: Dec | L33: 25.4 | M33: 89.1 | N33: 25.4 | O33: 32.9
K34: Annual | L34: =AVERAGE(L22:L33) -> 25.575 | M34: =MAX(M22:M33) -> 128.2 | N34: =AVERAGE(N22:N33) -> 25.64166667 | O34: =MAX(O22:O33) -> 43.7
J36: 20xx | K36: mg/Nm3 | L36: Monthly 1/2 hourly mean | M36: Monthly 1/2 hourly maximum | N36: Monthly daily mean | O36: Monthly daily maximum
J37: A3 | K37: Jan
K38: Feb
K39: Mar
K40: Apr
K41: May
K42: Jun
K43: Jul
K44: Aug
K45: Sep
K46: Oct
K47: Nov
A48: Comments : | K48: Dec
K49: Annual | M49: 0 | O49: 0
J51: 20xx | K51: mg/Nm3 | L51: Monthly 1/2 hourly mean | M51: Monthly 1/2 hourly maximum | N51: Monthly daily mean | O51: Monthly daily maximum
J52: A4 | K52: Jan
K53: Feb
K54: Mar
K55: Apr
K56: May
K57: Jun
K58: Jul
K59: Aug
K60: Sep
K61: Oct
K62: Nov
K63: Dec
K64: Annual | M64: 0 | O64: 0
J66: 20xx | K66: mg/Nm3 | L66: Monthly 1/2 hourly mean | M66: Monthly 1/2 hourly maximum | N66: Monthly daily mean | O66: Monthly daily maximum
J67: A5 | K67: Jan
K68: Feb
K69: Mar
K70: Apr
K71: May
K72: Jun
K73: Jul
K74: Aug
K75: Sep
K76: Oct
K77: Nov
K78: Dec
K79: Annual | M79: 0 | O79: 0

Sheet NOx
A1: Annual Performance Report 2022 | E1: LondonEnergy Ltd
A3: Monitoring of Oxides of Nitrogen emissions | D3: Whole Installation | G3: See Notes in Cell Q3 | J3: Monitoring of Oxides of Nitrogen emissions | N3: Per Combustion Line | Q3: Notes:
Q4: User to add logic to complete Whole installation, Table A5:G18. From the data in Per Combustion Line, Table J6:O79, subject to No. of lines installed
A5: mg/Nm3 | B5: 1/2 Hourly Reference Periods | E5: Daily Reference Periods
A6: 2022 | B6: 1/2 hourly NOx ELV | C6: Monthly 1/2 hourly mean | D6: Highest 1/2 hourly maximum | E6: Daily NOx ELV | F6: Monthly daily mean | G6: Highest daily maximum | J6: 2022 | K6: mg/Nm3 | L6: Monthly 1/2 hourly mean | M6: Monthly 1/2 hourly maximum | N6: Monthly daily mean | O6: Monthly daily maximum
A7: Jan | B7: 400 | C7: =AVERAGE(L7,L22) -> 157.2 | D7: =MAX(M7,M22) -> 221.8 | E7: 200 | F7: =AVERAGE(N7,N22) -> 157.2 | G7: =MAX(O7,O22) -> 187.2 | J7: A1 | K7: Jan | L7: 147.6 | M7: 210 | N7: 147.6 | O7: 170.4
A8: Feb | B8: 400 | C8: =AVERAGE(L8,L23) -> 160.45 | D8: =MAX(M8,M23) -> 249 | E8: 200 | F8: =AVERAGE(N8,N23) -> 160.45 | G8: =MAX(O8,O23) -> 184.8 | K8: Feb | L8: 155.2 | M8: 236.5 | N8: 155.2 | O8: 184.8
A9: Mar | B9: 400 | C9: =AVERAGE(L9,L24) -> 158.05 | D9: 268.2 | E9: 200 | F9: =AVERAGE(N9,N24) -> 158.05 | G9: 186 | K9: Mar | L9: 144.9 | M9: 268.2 | N9: 144.9 | O9: 168.5 | Q9: Whole Installation table A5:G18:
A10: Apr | B10: 400 | C10: =AVERAGE(L10,L25) -> 155.4 | D10: 243.6 | E10: 200 | F10: =AVERAGE(N10,N25) -> 155.4 | G10: 185.3 | K10: Apr | L10: 145.3 | M10: 243.6 | N10: 145.3 | O10: 181.9 | Q10: Mean: for 1/2 hourly and daily periods calculate mean of values across all operational combustion lines for the month
A11: May | B11: 400 | C11: =AVERAGE(L11,L26) -> 167.75 | D11: 309.8 | E11: 200 | F11: =AVERAGE(N11,N26) -> 167.75 | G11: 195.4 | K11: May | L11: 167.6 | M11: 309.8 | N11: 167.6 | O11: 190.3
A12: Jun | B12: 400 | C12: =AVERAGE(L12,L27) -> 168.05 | D12: 303.6 | E12: 200 | F12: =AVERAGE(N12,N27) -> 168.05 | G12: 196.8 | K12: Jun | L12: 157.7 | M12: 295.1 | N12: 157.7 | O12: 193.6
A13: Jul | B13: 400 | C13: =AVERAGE(L13,L28) -> 175.25 | D13: 285.4 | E13: 200 | F13: =AVERAGE(N13,N28) -> 175.25 | G13: 198 | K13: Jul | L13: 173.3 | M13: 285.4 | N13: 173.3 | O13: 198 | Q13: Maximum: for 1/2 hourly and daily periods use the highest value across all operational combustion lines for the month
A14: Aug | B14: 400 | C14: =AVERAGE(L14,L29) -> 168.4 | D14: 329.2 | E14: 200 | F14: =AVERAGE(N14,N29) -> 168.4 | G14: 194 | K14: Aug | L14: 160.2 | M14: 329.2 | N14: 160.2 | O14: 190
A15: Sep | B15: 400 | C15: =AVERAGE(L15,L30) -> 159.8 | D15: 256.2 | E15: 200 | F15: =AVERAGE(N15,N30) -> 159.8 | G15: 191.1 | K15: Sep | L15: 148.9 | M15: 209.4 | N15: 148.9 | O15: 172
A16: Oct | B16: 400 | C16: =AVERAGE(L16,L31) -> 165.75 | D16: 260 | E16: 200 | F16: =AVERAGE(N16,N31) -> 165.75 | G16: 190.5 | K16: Oct | L16: 158.1 | M16: 221.7 | N16: 158.1 | O16: 186
A17: Nov | B17: 400 | C17: =AVERAGE(L17,L32) -> 157.5 | D17: 221 | E17: 200 | F17: =AVERAGE(N17,N32) -> 157.5 | G17: 189 | K17: Nov | L17: 149 | M17: 221 | N17: 149 | O17: 179.6
A18: Dec | B18: 400 | C18: =AVERAGE(L18,L33) -> 159.8 | D18: 221.9 | E18: 200 | F18: =AVERAGE(N18,N33) -> 159.8 | G18: 187.8 | K18: Dec | L18: 147.6 | M18: 203.7 | N18: 147.6 | O18: 173.7
K19: Annual | L19: =AVERAGE(L7:L18) -> 154.6166667 | M19: =MAX(M7:M18) -> 329.2 | N19: =AVERAGE(N7:N18) -> 154.6166667 | O19: =MAX(O7:O18) -> 198
J21: 2022 | K21: mg/Nm3 | L21: Monthly 1/2 hourly mean | M21: Monthly 1/2 hourly maximum | N21: Monthly daily mean | O21: Monthly daily maximum
J22: A2 | K22: Jan | L22: 166.8 | M22: 221.8 | N22: 166.8 | O22: 187.2
K23: Feb | L23: 165.7 | M23: 249 | N23: 165.7 | O23: 183.5
K24: Mar | L24: 171.2 | M24: 230.1 | N24: 171.2 | O24: 186
K25: Apr | L25: 165.5 | M25: 233.5 | N25: 165.5 | O25: 185.3
K26: May | L26: 167.9 | M26: 276.4 | N26: 167.9 | O26: 195.4
K27: Jun | L27: 178.4 | M27: 303.6 | N27: 178.4 | O27: 196.8
K28: Jul | L28: 177.2 | M28: 281.6 | N28: 177.2 | O28: 196.2
K29: Aug | L29: 176.6 | M29: 246 | N29: 176.6 | O29: 194
K30: Sep | L30: 170.7 | M30: 256.2 | N30: 170.7 | O30: 191.1
K31: Oct | L31: 173.4 | M31: 260 | N31: 173.4 | O31: 190.5
K32: Nov | L32: 166 | M32: 220.8 | N32: 166 | O32: 189
K33: Dec | L33: 172 | M33: 221.9 | N33: 172 | O33: 187.8
K34: Annual | L34: =AVERAGE(L22:L33) -> 170.95 | M34: =MAX(M22:M33) -> 303.6 | N34: =AVERAGE(N22:N33) -> 170.95 | O34: =MAX(O22:O33) -> 196.8
J36: 20xx | K36: mg/Nm3 | L36: Monthly 1/2 hourly mean | M36: Monthly 1/2 hourly maximum | N36: Monthly daily mean | O36: Monthly daily maximum
J37: A3 | K37: Jan
K38: Feb
K39: Mar
K40: Apr
K41: May
K42: Jun
K43: Jul
K44: Aug
K45: Sep
K46: Oct
K47: Nov
A48: Comments : | K48: Dec
K49: Annual | M49: 0 | O49: 0
J51: 20xx | K51: mg/Nm3 | L51: Monthly 1/2 hourly mean | M51: Monthly 1/2 hourly maximum | N51: Monthly daily mean | O51: Monthly daily maximum
J52: A4 | K52: Jan
K53: Feb
K54: Mar
K55: Apr
K56: May
K57: Jun
K58: Jul
K59: Aug
K60: Sep
K61: Oct
K62: Nov
K63: Dec
K64: Annual | M64: 0 | O64: 0
J66: 20xx | K66: mg/Nm3 | L66: Monthly 1/2 hourly mean | M66: Monthly 1/2 hourly maximum | N66: Monthly daily mean | O66: Monthly daily maximum
J67: A5 | K67: Jan
K68: Feb
K69: Mar
K70: Apr
K71: May
K72: Jun
K73: Jul
K74: Aug
K75: Sep
K76: Oct
K77: Nov
K78: Dec
K79: Annual | M79: 0 | O79: 0

Sheet TOC
A1: Annual Performance Report 2022 | E1: LondonEnergy Ltd
A3: Monitoring of Total organic carbon emissions | D3: Whole Installation | G3: See Notes in Cell Q3 | J3: Monitoring of Total organic carbon emissions | N3: Per Combustion Line | Q3: Notes:
Q4: User to add logic to complete Whole installation, Table A5:G18. From the data in Per Combustion Line, Table J6:O79, subject to No. of lines installed
A5: mg/Nm3 | B5: 1/2 Hourly Reference Periods | E5: Daily Reference Periods
A6: 2022 | B6: 1/2 hourly TOC ELV | C6: Monthly 1/2 hourly mean | D6: Highest 1/2 hourly maximum | E6: Daily TOC ELV | F6: Monthly daily mean | G6: Highest daily maximum | J6: 2022 | K6: mg/Nm3 | L6: Monthly 1/2 hourly mean | M6: Monthly 1/2 hourly maximum | N6: Monthly daily mean | O6: Monthly daily maximum
A7: Jan | B7: 20 | C7: =AVERAGE(L7,L22) -> 0.85 | D7: =MAX(M7,M22) -> 17.7 | E7: 10 | F7: =AVERAGE(N7,N22) -> 0.85 | G7: =MAX(O7,O22) -> 3 | J7: A1 | K7: Jan | L7: 0.7 | M7: 13.9 | N7: 0.7 | O7: 1.1
A8: Feb | B8: 20 | C8: =AVERAGE(L8,L23) -> 0.75 | D8: =MAX(M8,M23) -> 41 | E8: 10 | F8: =AVERAGE(N8,N23) -> 0.75 | G8: =MAX(O8,O23) -> 1.6 | K8: Feb | L8: 0.6 | M8: 17.5 | N8: 0.6 | O8: 0.9
A9: Mar | B9: 20 | C9: =AVERAGE(L9,L24) -> 0.85 | D9: 23.6 | E9: 10 | F9: =AVERAGE(N9,N24) -> 0.85 | G9: 3.5 | K9: Mar | L9: 0.7 | M9: 15 | N9: 0.7 | O9: 1.7 | Q9: Whole Installation table A5:G18:
A10: Apr | B10: 20 | C10: =AVERAGE(L10,L25) -> 1.25 | D10: 95.8 | E10: 10 | F10: =AVERAGE(N10,N25) -> 1.25 | G10: 2.7 | K10: Apr | L10: 1.1 | M10: 60.6 | N10: 1.1 | O10: 2.7 | Q10: Mean: for 1/2 hourly and daily periods calculate mean of values across all operational combustion lines for the month
A11: May | B11: 20 | C11: =AVERAGE(L11,L26) -> 1.1 | D11: 91.3 | E11: 10 | F11: =AVERAGE(N11,N26) -> 1.1 | G11: 7.4 | K11: May | L11: 1.1 | M11: 32.4 | N11: 1.1 | O11: 7.4
A12: Jun | B12: 20 | C12: =AVERAGE(L12,L27) -> 0.9 | D12: 38.1 | E12: 10 | F12: =AVERAGE(N12,N27) -> 0.9 | G12: 2.4 | K12: Jun | L12: 0.8 | M12: 27.8 | N12: 0.8 | O12: 2.4
A13: Jul | B13: 20 | C13: =AVERAGE(L13,L28) -> 0.7 | D13: 34.5 | E13: 10 | F13: =AVERAGE(N13,N28) -> 0.7 | G13: 1.7 | K13: Jul | L13: 0.5 | M13: 34.5 | N13: 0.5 | O13: 1.3 | Q13: Maximum: for 1/2 hourly and daily periods use the highest value across all operational combustion lines for the month
A14: Aug | B14: 20 | C14: =AVERAGE(L14,L29) -> 2 | D14: 318.8 | E14: 10 | F14: =AVERAGE(N14,N29) -> 2 | G14: 47.8 | K14: Aug | L14: 3 | M14: 318.8 | N14: 3 | O14: 47.8
A15: Sep | B15: 20 | C15: =AVERAGE(L15,L30) -> 0.95 | D15: 36.1 | E15: 10 | F15: =AVERAGE(N15,N30) -> 0.95 | G15: 2.1 | K15: Sep | L15: 0.8 | M15: 36.1 | N15: 0.8 | O15: 1.5
A16: Oct | B16: 20 | C16: =AVERAGE(L16,L31) -> 0.95 | D16: 31.6 | E16: 10 | F16: =AVERAGE(N16,N31) -> 0.95 | G16: 3.5 | K16: Oct | L16: 0.7 | M16: 16.7 | N16: 0.7 | O16: 1.1
A17: Nov | B17: 20 | C17: =AVERAGE(L17,L32) -> 0.7 | D17: 51.8 | E17: 10 | F17: =AVERAGE(N17,N32) -> 0.7 | G17: 1.7 | K17: Nov | L17: 0.7 | M17: 51.8 | N17: 0.7 | O17: 1.7
A18: Dec | B18: 20 | C18: =AVERAGE(L18,L33) -> 0.95 | D18: 30.9 | E18: 10 | F18: =AVERAGE(N18,N33) -> 0.95 | G18: 2.1 | K18: Dec | L18: 0.9 | M18: 14 | N18: 0.9 | O18: 2.1
K19: Annual | L19: =AVERAGE(L7:L18) -> 0.9666666667 | M19: =MAX(M7:M18) -> 318.8 | N19: =AVERAGE(N7:N18) -> 0.9666666667 | O19: =MAX(O7:O18) -> 47.8
J21: 2022 | K21: mg/Nm3 | L21: Monthly 1/2 hourly mean | M21: Monthly 1/2 hourly maximum | N21: Monthly daily mean | O21: Monthly daily maximum
J22: A2 | K22: Jan | L22: 1 | M22: 17.7 | N22: 1 | O22: 3
K23: Feb | L23: 0.9 | M23: 41 | N23: 0.9 | O23: 1.6
K24: Mar | L24: 1 | M24: 23.6 | N24: 1 | O24: 3.5
K25: Apr | L25: 1.4 | M25: 95.8 | N25: 1.4 | O25: 2.5
K26: May | L26: 1.1 | M26: 91.3 | N26: 1.1 | O26: 2.9
K27: Jun | L27: 1 | M27: 38.1 | N27: 1 | O27: 2
K28: Jul | L28: 0.9 | M28: 22.6 | N28: 0.9 | O28: 1.7
K29: Aug | L29: 1 | M29: 33.6 | N29: 1 | O29: 1.7
K30: Sep | L30: 1.1 | M30: 14.4 | N30: 1.1 | O30: 2.1
K31: Oct | L31: 1.2 | M31: 31.6 | N31: 1.2 | O31: 3.5
K32: Nov | L32: 0.7 | M32: 10.6 | N32: 0.7 | O32: 1.2
K33: Dec | L33: 1 | M33: 30.9 | N33: 1 | O33: 1.9
K34: Annual | L34: =AVERAGE(L22:L33) -> 1.025 | M34: =MAX(M22:M33) -> 95.8 | N34: =AVERAGE(N22:N33) -> 1.025 | O34: =MAX(O22:O33) -> 3.5
J36: 20xx | K36: mg/Nm3 | L36: Monthly 1/2 hourly mean | M36: Monthly 1/2 hourly maximum | N36: Monthly daily mean | O36: Monthly daily maximum
J37: A3 | K37: Jan
K38: Feb
K39: Mar
K40: Apr
K41: May
K42: Jun
K43: Jul
K44: Aug
K45: Sep
K46: Oct
K47: Nov
A48: Comments : | K48: Dec
K49: Annual | M49: 0 | O49: 0
J51: 20xx | K51: mg/Nm3 | L51: Monthly 1/2 hourly mean | M51: Monthly 1/2 hourly maximum | N51: Monthly daily mean | O51: Monthly daily maximum
J52: A4 | K52: Jan
K53: Feb
K54: Mar
K55: Apr
K56: May
K57: Jun
K58: Jul
K59: Aug
K60: Sep
K61: Oct
K62: Nov
K63: Dec
K64: Annual | M64: 0 | O64: 0
J66: 20xx | K66: mg/Nm3 | L66: Monthly 1/2 hourly mean | M66: Monthly 1/2 hourly maximum | N66: Monthly daily mean | O66: Monthly daily maximum
J67: A5 | K67: Jan
K68: Feb
K69: Mar
K70: Apr
K71: May
K72: Jun
K73: Jul
K74: Aug
K75: Sep
K76: Oct
K77: Nov
K78: Dec
K79: Annual | M79: 0 | O79: 0

Sheet Particulates
A1: Annual Performance Report 2022 | E1: LondonEnergy Ltd
A3: Monitoring of Particulate matter emissions | D3: Whole Installation | G3: See Notes in Cell Q3 | J3: Monitoring of Particulate matter emissions | N3: Per Combustion Line | Q3: Notes:
Q4: User to add logic to complete Whole installation, Table A5:G18. From the data in Per Combustion Line, Table J6:O79, subject to No. of lines installed
A5: mg/Nm3 | B5: 1/2 Hourly Reference Periods | E5: Daily Reference Periods
A6: 2022 | B6: 1/2 hourly PM ELV | C6: Monthly 1/2 hourly mean | D6: Highest 1/2 hourly maximum | E6: Daily PM ELV | F6: Monthly daily mean | G6: Highest daily maximum | J6: 2022 | K6: mg/Nm3 | L6: Monthly 1/2 hourly mean | M6: Monthly 1/2 hourly maximum | N6: Monthly daily mean | O6: Monthly daily maximum
A7: Jan | B7: 30 | C7: =AVERAGE(L7,L22) -> 2.25 | D7: =AVERAGE(M7,M22) -> 12.2 | E7: 10 | F7: =AVERAGE(N7,N22) -> 2.25 | G7: =AVERAGE(O7,O22) -> 4.15 | J7: A1 | K7: Jan | L7: 2.3 | M7: 9.1 | N7: 2.3 | O7: 3.8
A8: Feb | B8: 30 | C8: =AVERAGE(L8,L23) -> 2.7 | D8: 30.2 | E8: 10 | F8: =AVERAGE(N8,N23) -> 2.7 | G8: 7.45 | K8: Feb | L8: 3.1 | M8: 48.4 | N8: 3.1 | O8: 11
A9: Mar | B9: 30 | C9: =AVERAGE(L9,L24) -> 1.3 | D9: 18.1 | E9: 10 | F9: =AVERAGE(N9,N24) -> 1.3 | G9: 4.15 | K9: Mar | L9: 1.4 | M9: 20.1 | N9: 1.4 | O9: 5.1 | Q9: Whole Installation table A5:G18:
A10: Apr | B10: 30 | C10: =AVERAGE(L10,L25) -> 1.05 | D10: 16.25 | E10: 10 | F10: =AVERAGE(N10,N25) -> 1.05 | G10: 2.4 | K10: Apr | L10: 1.3 | M10: 28.8 | N10: 1.3 | O10: 3.9 | Q10: Mean: for 1/2 hourly and daily periods calculate mean of values across all operational combustion lines for the month
A11: May | B11: 30 | C11: =AVERAGE(L11,L26) -> 1.15 | D11: 6.35 | E11: 10 | F11: =AVERAGE(N11,N26) -> 1.15 | G11: 1.8 | K11: May | L11: 1.5 | M11: 10.6 | N11: 1.5 | O11: 2.6
A12: Jun | B12: 30 | C12: =AVERAGE(L12,L27) -> 0.95 | D12: 2.75 | E12: 10 | F12: =AVERAGE(N12,N27) -> 0.95 | G12: 1.3 | K12: Jun | L12: 1.1 | M12: 3.6 | N12: 1.1 | O12: 1.6
A13: Jul | B13: 30 | C13: =AVERAGE(L13,L28) -> 1.25 | D13: 4.1 | E13: 10 | F13: =AVERAGE(N13,N28) -> 1.25 | G13: 2.25 | K13: Jul | L13: 1.6 | M13: 0.9 | N13: 1.6 | O13: 2.6 | Q13: Maximum: for 1/2 hourly and daily periods use the highest value across all operational combustion lines for the month
A14: Aug | B14: 30 | C14: =AVERAGE(L14,L29) -> 1.6 | D14: 9.15 | E14: 10 | F14: =AVERAGE(N14,N29) -> 1.6 | G14: 3.4 | K14: Aug | L14: 1.6 | M14: 8.7 | N14: 1.6 | O14: 3.3
A15: Sep | B15: 30 | C15: =AVERAGE(L15,L30) -> 1.6 | D15: 44.05 | E15: 10 | F15: =AVERAGE(N15,N30) -> 1.6 | G15: 3.4 | K15: Sep | L15: 1.3 | M15: 2.4 | N15: 1.3 | O15: 1.7
A16: Oct | B16: 30 | C16: =AVERAGE(L16,L31) -> 1.2 | D16: 3.05 | E16: 10 | F16: =AVERAGE(N16,N31) -> 1.2 | G16: 1.75 | K16: Oct | L16: 1.3 | M16: 3.8 | N16: 1.3 | O16: 2.1
A17: Nov | B17: 30 | C17: =AVERAGE(L17,L32) -> 1.75 | D17: 4.15 | E17: 10 | F17: =AVERAGE(N17,N32) -> 1.75 | G17: 2.35 | K17: Nov | L17: 1.9 | M17: 5.5 | N17: 1.9 | O17: 2.6
A18: Dec | B18: 30 | C18: =AVERAGE(L18,L33) -> 1.85 | D18: 4.05 | E18: 10 | F18: =AVERAGE(N18,N33) -> 1.85 | G18: 2.7 | K18: Dec | L18: 1.9 | M18: 5 | N18: 1.9 | O18: 3.2
K19: Annual | L19: =AVERAGE(L7:L18) -> 1.691666667 | M19: =MAX(M7:M18) -> 48.4 | N19: =AVERAGE(N7:N18) -> 1.691666667 | O19: =MAX(O7:O18) -> 11
J21: 2022 | K21: mg/Nm3 | L21: Monthly 1/2 hourly mean | M21: Monthly 1/2 hourly maximum | N21: Monthly daily mean | O21: Monthly daily maximum
J22: A2 | K22: Jan | L22: 2.2 | M22: 15.3 | N22: 2.2 | O22: 4.5
K23: Feb | L23: 2.3 | M23: 12 | N23: 2.3 | O23: 3.9
K24: Mar | L24: 1.2 | M24: 16.1 | N24: 1.2 | O24: 3.2
K25: Apr | L25: 0.8 | M25: 3.7 | N25: 0.8 | O25: 0.9
K26: May | L26: 0.8 | M26: 2.1 | N26: 0.8 | O26: 1
K27: Jun | L27: 0.8 | M27: 1.9 | N27: 0.8 | O27: 1
K28: Jul | L28: 0.9 | M28: 7.3 | N28: 0.9 | O28: 1.9
K29: Aug | L29: 1.6 | M29: 9.6 | N29: 1.6 | O29: 3.5
K30: Sep | L30: 1.9 | M30: 85.7 | N30: 1.9 | O30: 5.1
K31: Oct | L31: 1.1 | M31: 2.3 | N31: 1.1 | O31: 1.4
K32: Nov | L32: 1.6 | M32: 2.8 | N32: 1.6 | O32: 2.1
K33: Dec | L33: 1.8 | M33: 3.1 | N33: 1.8 | O33: 2.2
K34: Annual | L34: =AVERAGE(L22:L33) -> 1.416666667 | M34: =MAX(M22:M33) -> 85.7 | N34: =AVERAGE(N22:N33) -> 1.416666667 | O34: =MAX(O22:O33) -> 5.1
J36: 20xx | K36: mg/Nm3 | L36: Monthly 1/2 hourly mean | M36: Monthly 1/2 hourly maximum | N36: Monthly daily mean | O36: Monthly daily maximum
J37: A3 | K37: Jan
K38: Feb
K39: Mar
K40: Apr
K41: May
K42: Jun
K43: Jul
K44: Aug
K45: Sep
K46: Oct
K47: Nov
A48: Comments : | K48: Dec
K49: Annual | M49: 0 | O49: 0
J51: 20xx | K51: mg/Nm3 | L51: Monthly 1/2 hourly mean | M51: Monthly 1/2 hourly maximum | N51: Monthly daily mean | O51: Monthly daily maximum
J52: A4 | K52: Jan
K53: Feb
K54: Mar
K55: Apr
K56: May
K57: Jun
K58: Jul
K59: Aug
K60: Sep
K61: Oct
K62: Nov
K63: Dec
K64: Annual | M64: 0 | O64: 0
J66: 20xx | K66: mg/Nm3 | L66: Monthly 1/2 hourly mean | M66: Monthly 1/2 hourly maximum | N66: Monthly daily mean | O66: Monthly daily maximum
J67: A5 | K67: Jan
K68: Feb
K69: Mar
K70: Apr
K71: May
K72: Jun
K73: Jul
K74: Aug
K75: Sep
K76: Oct
K77: Nov
K78: Dec
K79: Annual | M79: 0 | O79: 0

Sheet CO 95% 10 min
A1: Annual Performance Report 2022 | E1: LondonEnergy Ltd
A3: Monitoring of Carbon Monoxide (10-minute avg) | E3: Whole Installation | H3: See Notes in Cell S3 | J3: Monitoring of Carbon Monoxide (10-minute avg) | O3: Per Combustion Line | Q3: Notes: | S3: Notes:
S4: User to add logic to complete Whole installation, Table A5:H18. From the data in Per Combustion Line, Table K6:Q79, subject to No. of lines installed
A5: mg/Nm3 | B5: 10-minute Reference Periods | F5: Daily Reference Periods
A6: 2022 | B6: 95%ile 10-min avg CO ELV | C6: 95%ile 10-min avg maximum | D6: Monthly CO 10-min avg mean | E6: 10-min avg maximum | F6: Daily CO ELV | G6: Monthly daily mean | H6: Highest daily maximum | K6: 2022 | L6: mg/Nm3 | M6: 95%ile 10-min avg maximum | N6: Monthly CO 10-min avg mean | O6: 10-min avg maximum | P6: Monthly daily mean | Q6: Monthly daily maximum
A7: Jan | B7: 150 | C7: =MAX(M7,M22) -> 108.3 | D7: =AVERAGE(N7,N22) -> 27.9 | E7: =MAX(O7,O22) -> 372.9 | F7: 50 | G7: =AVERAGE(P7,P22) -> 27.9 | H7: =MAX(Q7,Q22) -> 41.2 | K7: A1 | L7: Jan | M7: 102.4 | N7: 26.8 | O7: 263.2 | P7: 26.8 | Q7: 36
A8: Feb | B8: 150 | C8: =MAX(M8,M23) -> 132 | D8: =AVERAGE(N8,N23) -> 28.05 | E8: =MAX(O8,O23) -> 1068.4 | F8: 50 | G8: =AVERAGE(P8,P23) -> 28.05 | H8: =MAX(Q8,Q23) -> 47.3 | L8: Feb | M8: 128.2 | N8: 28.1 | O8: 1068.4 | P8: 28.1 | Q8: 47.3
A9: Mar | B9: 150 | C9: 128.7 | D9: =AVERAGE(N9,N24) -> 25.7 | E9: 858.7 | F9: 50 | G9: =AVERAGE(P9,P24) -> 25.7 | H9: 44.2 | L9: Mar | M9: 128.7 | N9: 27.7 | O9: 858.7 | P9: 27.7 | Q9: 44.2 | S9: Whole Installation table A5:H18:
A10: Apr | B10: 150 | C10: 503.1 | D10: =AVERAGE(N10,N25) -> 30.3 | E10: 1718.6 | F10: 50 | G10: =AVERAGE(P10,P25) -> 30.3 | H10: 115.9 | L10: Apr | M10: 439.7 | N10: 34.3 | O10: 1718.6 | P10: 34.3 | Q10: 115.9 | S10: Mean: for 10-min and daily periods use average of all operational combustion lines.
A11: May | B11: 150 | C11: 227.7 | D11: =AVERAGE(N11,N26) -> 26.2 | E11: 1102.8 | F11: 50 | G11: =AVERAGE(P11,P26) -> 26.2 | H11: 61.4 | L11: May | M11: 227.4 | N11: 26.5 | O11: 817.1 | P11: 26.5 | Q11: 59.1
A12: Jun | B12: 150 | C12: 163.9 | D12: =AVERAGE(N12,N27) -> 25.45 | E12: 1131.5 | F12: 50 | G12: =AVERAGE(P12,P27) -> 25.45 | H12: 49.6 | L12: Jun | M12: 163.9 | N12: 28.7 | O12: 1131.5 | P12: 28.7 | Q12: 49.6
A13: Jul | B13: 150 | C13: 134.5 | D13: =AVERAGE(N13,N28) -> 26.8 | E13: 852.4 | F13: 50 | G13: =AVERAGE(P13,P28) -> 26.8 | H13: 44.3 | L13: Jul | M13: 134 | N13: 31.7 | O13: 666.3 | P13: 31.7 | Q13: 44.3 | S13: Maximum: for 10-min and daily periods use the highest of all operational combustion lines in any month.
A14: Aug | B14: 150 | C14: 516.8 | D14: =AVERAGE(N14,N29) -> 26.1 | E14: 1138.1 | F14: 50 | G14: =AVERAGE(P14,P29) -> 26.1 | H14: 108.2 | L14: Aug | M14: 516.8 | N14: 32.4 | O14: 1138.1 | P14: 32.4 | Q14: 108.2
A15: Sep | B15: 150 | C15: 151.7 | D15: =AVERAGE(N15,N30) -> 24.85 | E15: 1054.2 | F15: 50 | G15: =AVERAGE(P15,P30) -> 24.85 | H15: 49.6 | L15: Sep | M15: 151.7 | N15: 27.5 | O15: 1054.2 | P15: 27.5 | Q15: 49.6
A16: Oct | B16: 150 | C16: 130.8 | D16: =AVERAGE(N16,N31) -> 26.55 | E16: 794.9 | F16: 50 | G16: =AVERAGE(P16,P31) -> 26.55 | H16: 43.4 | L16: Oct | M16: 89.3 | N16: 26.8 | O16: 794.9 | P16: 26.8 | Q16: 41
A17: Nov | B17: 150 | C17: 164.8 | D17: =AVERAGE(N17,N32) -> 34.2 | E17: 1182.2 | F17: 50 | G17: =AVERAGE(P17,P32) -> 34.2 | H17: 47.7 | L17: Nov | M17: 164.8 | N17: 33.8 | O17: 1182.2 | P17: 33.8 | Q17: 47.7
A18: Dec | B18: 150 | C18: 137 | D18: =AVERAGE(N18,N33) -> 29.4 | E18: 453.3 | F18: 50 | G18: =AVERAGE(P18,P33) -> 29.4 | H18: 48 | L18: Dec | M18: 122.8 | N18: 28.8 | O18: 453.3 | P18: 28.8 | Q18: 45.8
L19: Annual | M19: =MAX(M7:M18) -> 516.8 | N19: =AVERAGE(N7:N18) -> 29.425 | O19: =MAX(O7:O18) -> 1718.6 | P19: =AVERAGE(P7:P18) -> 29.425 | Q19: =MAX(Q7:Q18) -> 115.9
K21: 2022 | L21: mg/Nm3 | M21: 95%ile 10-min avg maximum | N21: Monthly CO 10-min avg mean | O21: 10-min avg maximum | P21: Monthly daily mean | Q21: Monthly daily maximum
K22: A2 | L22: Jan | M22: 108.3 | N22: 29 | O22: 372.9 | P22: 29 | Q22: 41.2
L23: Feb | M23: 132 | N23: 28 | O23: 335.4 | P23: 28 | Q23: 43.9
L24: Mar | M24: 120.5 | N24: 23.7 | O24: 451.4 | P24: 23.7 | Q24: 43.5
L25: Apr | M25: 503.1 | N25: 26.3 | O25: 1151.7 | P25: 26.3 | Q25: 43.7
L26: May | M26: 227.7 | N26: 25.9 | O26: 1102.8 | P26: 25.9 | Q26: 61.4
L27: Jun | M27: 109 | N27: 22.2 | O27: 897.7 | P27: 22.2 | Q27: 32.5
L28: Jul | M28: 134.5 | N28: 21.9 | O28: 852.4 | P28: 21.9 | Q28: 41.8
L29: Aug | M29: 143.6 | N29: 19.8 | O29: 378.7 | P29: 19.8 | Q29: 37.5
L30: Sep | M30: 116.9 | N30: 22.2 | O30: 379.3 | P30: 22.2 | Q30: 41.2
L31: Oct | M31: 130.8 | N31: 26.3 | O31: 708.1 | P31: 26.3 | Q31: 43.4
L32: Nov | M32: 136.2 | N32: 34.6 | O32: 364.2 | P32: 34.6 | Q32: 47.5
L33: Dec | M33: 137 | N33: 30 | O33: 409.9 | P33: 30 | Q33: 48
L34: Annual | M34: =MAX(M22:M33) -> 503.1 | N34: =AVERAGE(N22:N33) -> 25.825 | O34: =MAX(O21:O33) -> 1151.7 | P34: =AVERAGE(P22:P33) -> 25.825 | Q34: =MAX(Q22:Q33) -> 61.4
K36: 20xx | L36: mg/Nm3 | M36: 95%ile 10-min avg maximum | N36: Monthly CO 10-min avg mean | O36: 10-min avg maximum | P36: Monthly daily mean | Q36: Monthly daily maximum
K37: A3 | L37: Jan
L38: Feb
L39: Mar
L40: Apr
L41: May
L42: Jun
L43: Jul
L44: Aug
L45: Sep
L46: Oct
L47: Nov
A48: Comments : | L48: Dec
A49: Environment Agency explanatory note: The 10-minute average ELV is based on the “95th percentile”. In this case this means that 95% of the 10 minute averages in the relevant 24-hour period (i.e. 137) must be below 150 mg/Nm3, and 5% (i.e. 7) are allowed to be any value above 150 mg/Nm3. Whilst we expect operators to minimise CO emissions at all times, it is perfectly acceptable for the value of the maximum 10-minute average to be above 150 mg/Nm3, provided the 95th percentile ELV has been met for that period. | L49: Annual | O49: 0 | Q49: 0
K51: 20xx | L51: mg/Nm3 | M51: 95%ile 10-min avg maximum | N51: Monthly CO 10-min avg mean | O51: 10-min avg maximum | P51: Monthly daily mean | Q51: Monthly daily maximum
K52: A4 | L52: Jan
L53: Feb
L54: Mar
L55: Apr
L56: May
L57: Jun
L58: Jul
L59: Aug
L60: Sep
L61: Oct
L62: Nov
L63: Dec
L64: Annual | O64: 0 | Q64: 0
K66: 20xx | L66: mg/Nm3 | M66: 95%ile 10-min avg maximum | N66: Monthly CO 10-min avg mean | O66: 10-min avg maximum | P66: Monthly daily mean | Q66: Monthly daily maximum
K67: A5 | L67: Jan
L68: Feb
L69: Mar
L70: Apr
L71: May
L72: Jun
L73: Jul
L74: Aug
L75: Sep
L76: Oct
L77: Nov
L78: Dec
L79: Annual | O79: 0 | Q79: 0

Sheet NH3
A1: Annual Performance Report 2022 | E1: LondonEnergy Ltd
A3: Monitoring of Ammnonia emissions | D3: Whole Installation | G3: See Notes in Cell Q3 | J3: Monitoring of Ammnonia emissions | N3: Per Combustion Line | Q3: Notes:
Q4: User to add logic to complete Whole installation, Table A5:G18. From the data in Per Combustion Line, Table J6:O79, subject to No. of lines installed
A5: mg/Nm3 | B5: 1/2 Hourly Reference Periods | E5: Daily Reference Periods
A6: 2022 | B6: 1/2 hourly NH3 ELV | C6: Monthly 1/2 hourly mean | D6: Highest 1/2 hourly maximum | E6: Daily NH3 ELV | F6: Monthly daily mean | G6: Highest daily maximum | J6: 2022 | K6: mg/Nm3 | L6: Monthly 1/2 hourly mean | M6: Monthly 1/2 hourly maximum | N6: Monthly daily mean | O6: Monthly daily maximum
A7: Jan | B7: 0 | C7: =AVERAGE(L7,L22) -> 4.95 | D7: =MAX(M7,M22) -> 26.3 | E7: 0 | F7: =AVERAGE(N7,N22) -> 4.95 | G7: =MAX(O7,O22) -> 9.6 | J7: A1 | K7: Jan | L7: 3.3 | M7: 26.3 | N7: 3.3 | O7: 6
A8: Feb | B8: 0 | C8: =AVERAGE(L8,L23) -> 5.8 | D8: =MAX(M8,M23) -> 75.5 | E8: 0 | F8: =AVERAGE(N8,N23) -> 5.8 | G8: =MAX(O8,O23) -> 13 | K8: Feb | L8: 4.5 | M8: 66.2 | N8: 4.5 | O8: 8.8
A9: Mar | B9: 0 | C9: =AVERAGE(L9,L24) -> 4.45 | D9: 23.1 | E9: 0 | F9: =AVERAGE(N9,N24) -> 4.45 | G9: 8.6 | K9: Mar | L9: 3.2 | M9: 13 | N9: 3.2 | O9: 4.6 | Q9: Whole Installation table A5:G18:
A10: Apr | B10: 0 | C10: =AVERAGE(L10,L25) -> 6.2 | D10: 63.5 | E10: 0 | F10: =AVERAGE(N10,N25) -> 6.2 | G10: 15.4 | K10: Apr | L10: 5.4 | M10: 59 | N10: 5.4 | O10: 15.4 | Q10: Mean: for 1/2 hourly and daily periods calculate mean of values across all operational combustion lines for the month
A11: May | B11: 0 | C11: =AVERAGE(L11,L26) -> 7.65 | D11: 92.8 | E11: 0 | F11: =AVERAGE(N11,N26) -> 7.65 | G11: 20.6 | K11: May | L11: 6.4 | M11: 72.9 | N11: 6.4 | O11: 18.1
A12: Jun | B12: 0 | C12: =AVERAGE(L12,L27) -> 6.15 | D12: 29.7 | E12: 0 | F12: =AVERAGE(N12,N27) -> 6.15 | G12: 12.9 | K12: Jun | L12: 4.8 | M12: 22.5 | N12: 4.8 | O12: 9.8
A13: Jul | B13: 0 | C13: =AVERAGE(L13,L28) -> 11.15 | D13: 93.5 | E13: 0 | F13: =AVERAGE(N13,N28) -> 11.15 | G13: 33.3 | K13: Jul | L13: 10.2 | M13: 67.7 | N13: 10.2 | O13: 21.5 | Q13: Maximum: for 1/2 hourly and daily periods use the highest value across all operational combustion lines for the month
A14: Aug | B14: 0 | C14: =AVERAGE(L14,L29) -> 7.45 | D14: 95.2 | E14: 0 | F14: =AVERAGE(N14,N29) -> 7.45 | G14: 16.8 | K14: Aug | L14: 7.6 | M14: 67.4 | N14: 7.6 | O14: 16.8
A15: Sep | B15: 0 | C15: =AVERAGE(L15,L30) -> 6.05 | D15: 48.2 | E15: 0 | F15: =AVERAGE(N15,N30) -> 6.05 | G15: 13.5 | K15: Sep | L15: 3.9 | M15: 15.7 | N15: 3.9 | O15: 7
A16: Oct | B16: 0 | C16: =AVERAGE(L16,L31) -> 6.8 | D16: 36.6 | E16: 0 | F16: =AVERAGE(N16,N31) -> 6.8 | G16: 16.7 | K16: Oct | L16: 4.7 | M16: 28 | N16: 4.7 | O16: 11
A17: Nov | B17: 0 | C17: =AVERAGE(L17,L32) -> 8.1 | D17: 117.7 | E17: 0 | F17: =AVERAGE(N17,N32) -> 8.1 | G17: 23.4 | K17: Nov | L17: 7.5 | M17: 42.2 | N17: 7.5 | O17: 13.6
A18: Dec | B18: 0 | C18: =AVERAGE(L18,L33) -> 5.3 | D18: 38.4 | E18: 0 | F18: =AVERAGE(N18,N33) -> 5.3 | G18: 10.9 | K18: Dec | L18: 4.1 | M18: 20.5 | N18: 4.1 | O18: 10.9
K19: Annual | L19: =AVERAGE(L7:L18) -> 5.466666667 | M19: =MAX(M7:M18) -> 72.9 | N19: =AVERAGE(N7:N18) -> 5.466666667 | O19: =MAX(O7:O18) -> 21.5
J21: 2022 | K21: mg/Nm3 | L21: Monthly 1/2 hourly mean | M21: Monthly 1/2 hourly maximum | N21: Monthly daily mean | O21: Monthly daily maximum
J22: A2 | K22: Jan | L22: 6.6 | M22: 22.4 | N22: 6.6 | O22: 9.6
K23: Feb | L23: 7.1 | M23: 75.5 | N23: 7.1 | O23: 13
K24: Mar | L24: 5.7 | M24: 23.1 | N24: 5.7 | O24: 8.6
K25: Apr | L25: 7 | M25: 63.5 | N25: 7 | O25: 10.4
K26: May | L26: 8.9 | M26: 92.8 | N26: 8.9 | O26: 20.6
K27: Jun | L27: 7.5 | M27: 29.7 | N27: 7.5 | O27: 12.9
K28: Jul | L28: 12.1 | M28: 93.5 | N28: 12.1 | O28: 33.3
K29: Aug | L29: 7.3 | M29: 95.2 | N29: 7.3 | O29: 11.6
K30: Sep | L30: 8.2 | M30: 48.2 | N30: 8.2 | O30: 13.5
K31: Oct | L31: 8.9 | M31: 36.6 | N31: 8.9 | O31: 16.7
K32: Nov | L32: 8.7 | M32: 117.7 | N32: 8.7 | O32: 23.4
K33: Dec | L33: 6.5 | M33: 38.4 | N33: 6.5 | O33: 10.6
K34: Annual | L34: =AVERAGE(L22:L33) -> 7.875 | M34: =MAX(M22:M33) -> 117.7 | N34: =AVERAGE(N22:N33) -> 7.875 | O34: =MAX(O22:O33) -> 33.3
J36: 20xx | K36: mg/Nm3 | L36: Monthly 1/2 hourly mean | M36: Monthly 1/2 hourly maximum | N36: Monthly daily mean | O36: Monthly daily maximum
J37: A3 | K37: Jan
K38: Feb
K39: Mar
K40: Apr
K41: May
K42: Jun
K43: Jul
K44: Aug
K45: Sep
K46: Oct
K47: Nov
A48: Comments : | K48: Dec
A49: An indicated ELV value of zero in the table above means that no ammonia limit is set in the permit. | K49: Annual | M49: 0 | O49: 0
J51: 20xx | K51: mg/Nm3 | L51: Monthly 1/2 hourly mean | M51: Monthly 1/2 hourly maximum | N51: Monthly daily mean | O51: Monthly daily maximum
J52: A4 | K52: Jan
K53: Feb
K54: Mar
K55: Apr
K56: May
K57: Jun
K58: Jul
K59: Aug
K60: Sep
K61: Oct
K62: Nov
K63: Dec
K64: Annual | M64: 0 | O64: 0
J66: 20xx | K66: mg/Nm3 | L66: Monthly 1/2 hourly mean | M66: Monthly 1/2 hourly maximum | N66: Monthly daily mean | O66: Monthly daily maximum
J67: A5 | K67: Jan
K68: Feb
K69: Mar
K70: Apr
K71: May
K72: Jun
K73: Jul
K74: Aug
K75: Sep
K76: Oct
K77: Nov
K78: Dec
K79: Annual | M79: 0 | O79: 0
